Department Family,Entity,Date of Payment,GL Description,Expense Area,Supplier,Voluntary & Community Sector,SME Class,Sole Trader,Transaction number,Purchasing Item Text,Postal Code,Amount in Sterling,Grant?
MHCLG,PINS,01/07/2019,Agency Staff,"Finance, Commercial & Performance",REED SPECIALIST RECRUITMENT LTD,,Large,,5106248550,AA Storekeeper,SW20 0BA,371.10,
MHCLG,PINS,01/07/2019,Conferences and Meeting Facilities,Performance Recovery,CALDER CONFERENCES LIMITED,,Small,,5106248509,New Inspector Training ,LS16 6RF,"12,136.00",
MHCLG,PINS,01/07/2019,NSI Fees & Expenses,NSI Fees Planning,G R PLANNING CONSULTANCY LTD,,Small,,5106248499,NSI Fees,TQ6 9RG,"2,040.00",
MHCLG,PINS,01/07/2019,NSI Fees & Expenses,NSI Expenses Planning,G R PLANNING CONSULTANCY LTD,,Small,,5106248499,NSI Expenses,TQ6 9RG,157.37,
MHCLG,PINS,01/07/2019,NSI Fees & Expenses,NSI Fees Planning,JM SPURLING PLANNING CONSULTANTS LT,,Small,,5106248560,NSI Fees,WR14 1UQ,"1,050.00",
MHCLG,PINS,01/07/2019,NSI Fees & Expenses,NSI Expenses Planning,JM SPURLING PLANNING CONSULTANTS LT,,Small,,5106248560,NSI Expenses,WR14 1UQ,36.00,
MHCLG,PINS,01/07/2019,NSI Fees & Expenses,NSI Fees Planning,LEIGH & GLENNIE LTD,,Micro,,5106248559,NSI Fees,SL5 9EA,"3,210.00",
MHCLG,PINS,01/07/2019,NSI Fees & Expenses,NSI Expenses Planning,LEIGH & GLENNIE LTD,,Micro,,5106248559,NSI Expenses,SL5 9EA,98.34,
MHCLG,PINS,01/07/2019,NSI Fees & Expenses,NSI Fees Planning,PJS DEVELOPMENT SOLUTIONS LTD,,Micro,,5106248558,NSI Fees,GL2 0DU,"2,040.00",
MHCLG,PINS,01/07/2019,NSI Fees & Expenses,NSI Expenses Planning,PJS DEVELOPMENT SOLUTIONS LTD,,Micro,,5106248558,NSI Expenses,GL2 0DU,244.08,
MHCLG,PINS,01/07/2019,Office Supplies,Business Support,BANNER BUSINESS SUPPLIES LTD,,Large,,5106248540,office stationary 19/20,S9 1XU,250.86,
MHCLG,PINS,01/07/2019,Specialist Technical Support,ICT Digital Services,HAYS SPECIALIST RECRUITMENT LTD,,Large,,5106248544,O365 specialist ,NW1 2AF,"2,494.32",
MHCLG,PINS,01/07/2019,Specialist Technical Support,ICT Digital Services,HAYS SPECIALIST RECRUITMENT LTD,,Large,,5106248545,O365 specialist,NW1 2AF,"2,494.32",
MHCLG,PINS,02/07/2019,Agency Staff,"Finance, Commercial & Performance",REED SPECIALIST RECRUITMENT LTD,,Large,,5106248345,EO for Finance ext,SW20 0BA,732.73,
MHCLG,PINS,02/07/2019,Agency Staff,TR Transformation,REED SPECIALIST RECRUITMENT LTD,,Large,,5106248564,EO ODT Project Support Officer,SW20 0BA,903.67,
MHCLG,PINS,02/07/2019,Legal Fees,Wales Director,GOVERNMENT LEGAL DEPT,,Public Bodies,,5106248590,Legal Fees 2019,WC2B 4TS,"3,298.92",
MHCLG,PINS,02/07/2019,NSI Fees & Expenses,NSI Fees Planning,ADDC LTD,,Small,,5106248592,NSI Fees,DE56 4AD,"1,450.00",
MHCLG,PINS,02/07/2019,NSI Fees & Expenses,NSI Expenses Planning,ADDC LTD,,Small,,5106248592,NSI Expenses,DE56 4AD,126.30,
MHCLG,PINS,02/07/2019,NSI Fees & Expenses,NSI Fees Planning,CARBROOK ASSOCIATES,,Micro,,5106248589,NSI Fees,M32 8QU,"1,750.00",
MHCLG,PINS,02/07/2019,NSI Fees & Expenses,NSI Expenses Planning,CARBROOK ASSOCIATES,,Micro,,5106248589,NSI Expenses,M32 8QU,284.60,
MHCLG,PINS,02/07/2019,NSI Fees & Expenses,NSI Fees Planning,DAVIS PLANNING LIMITED,,Small,,5106248587,NSI Fees,RG41 3HL,"1,680.00",
MHCLG,PINS,02/07/2019,NSI Fees & Expenses,NSI Expenses Planning,DAVIS PLANNING LIMITED,,Small,,5106248587,NSI Expenses,RG41 3HL,87.90,
MHCLG,PINS,02/07/2019,NSI Fees & Expenses,NSI Fees Planning,GARY DEANE ASSOCIATES LIMITED,,Micro,,5106248588,NSI Fees,M33 6RG,"2,760.00",
MHCLG,PINS,02/07/2019,NSI Fees & Expenses,NSI Expenses Planning,GARY DEANE ASSOCIATES LIMITED,,Micro,,5106248588,NSI Expenses,M33 6RG,113.94,
MHCLG,PINS,02/07/2019,NSI Fees & Expenses,NSI Fees Planning,JAN HEBBLETHWAITE,,Micro,,5106248603,NSI Fees,ST17 0SA,"1,400.00",
MHCLG,PINS,02/07/2019,NSI Fees & Expenses,NSI Expenses Planning,JAN HEBBLETHWAITE,,Micro,,5106248603,NSI Expenses,ST17 0SA,94.50,
MHCLG,PINS,02/07/2019,NSI Fees & Expenses,NSI Fees Planning,MARTIN ANDREWS PLANNING CONSULTANCY,,Micro,,5106248600,NSI Fees,BH15 1HH,"2,100.00",
MHCLG,PINS,02/07/2019,NSI Fees & Expenses,NSI Expenses Planning,MARTIN ANDREWS PLANNING CONSULTANCY,,Micro,,5106248600,NSI Expenses,BH15 1HH,136.80,
MHCLG,PINS,02/07/2019,NSI Fees & Expenses,NSI Fees Planning,PHILIPPA JARVIS PLANNING CONSULTANC,,Data Not Provided,,5106248576,NSI Fees,LU7 2RQ,"2,760.00",
MHCLG,PINS,02/07/2019,NSI Fees & Expenses,NSI Expenses Planning,PHILIPPA JARVIS PLANNING CONSULTANC,,Data Not Provided,,5106248576,NSI Expenses,LU7 2RQ,66.60,
MHCLG,PINS,02/07/2019,NSI Fees & Expenses,NSI Fees Planning,SIMPLY PLANNING LIMITED,,Small,,5106248591,NSI Fees,BT23 6NR,"1,680.00",
MHCLG,PINS,02/07/2019,NSI Fees & Expenses,NSI Expenses Planning,SIMPLY PLANNING LIMITED,,Small,,5106248591,NSI Expenses,BT23 6NR,148.14,
MHCLG,PINS,02/07/2019,NSI Fees & Expenses,NSI Fees Planning,SIMPLY PLANNING LIMITED,,Small,,5106248607,NSI Fees,BT23 6NR,"2,040.00",
MHCLG,PINS,02/07/2019,NSI Fees & Expenses,NSI Expenses Planning,SIMPLY PLANNING LIMITED,,Small,,5106248607,NSI Expenses,BT23 6NR,138.72,
MHCLG,PINS,02/07/2019,NSI Fees & Expenses,NSI Fees Planning,VICTOR CALLISTER,,Small,,5106248577,NSI Fees,E1 1LQ,"1,400.00",
MHCLG,PINS,02/07/2019,NSI Fees & Expenses,NSI Expenses Planning,VICTOR CALLISTER,,Small,,5106248577,NSI Expenses,E1 1LQ,236.09,
MHCLG,PINS,03/07/2019,Agency Staff,Performance Recovery,HAYS SPECIALIST RECRUITMENT LTD,,Large,,5106248631,HR Recruitment Resource SC,NW1 2AF,511.19,
MHCLG,PINS,03/07/2019,Agency Staff,"Finance, Commercial & Performance",REED SPECIALIST RECRUITMENT LTD,,Large,,2100073212,EO for Finance ext,SW20 0BA,-888.89,
MHCLG,PINS,03/07/2019,Agency Staff,Transformation Prog Management Office,REED SPECIALIST RECRUITMENT LTD,,Large,,5106248343,Finance Business Partner,SW20 0BA,"1,159.20",
MHCLG,PINS,03/07/2019,Agency Staff,Performance Recovery,REED SPECIALIST RECRUITMENT LTD,,Large,,5106248563,Brexit Planning EO,SW20 0BA,985.80,
MHCLG,PINS,03/07/2019,Agency Staff,"Finance, Commercial & Performance",REED SPECIALIST RECRUITMENT LTD,,Large,,5106248565,EO for Finance ext,SW20 0BA,888.89,
MHCLG,PINS,03/07/2019,Agency Staff,"Policy, Knowledge & Quality",REED SPECIALIST RECRUITMENT LTD,,Large,,5106248566,Agency Staff for Livrary 19-20,SW20 0BA,604.73,
MHCLG,PINS,03/07/2019,Agency Staff,Transformation Prog Management Office,REED SPECIALIST RECRUITMENT LTD,,Large,,5106248567,Finance Business Partner,SW20 0BA,"1,429.68",
MHCLG,PINS,03/07/2019,Agency Staff,"Finance, Commercial & Performance",REED SPECIALIST RECRUITMENT LTD,,Large,,5106248619,Commercial AO (LB),SW20 0BA,469.90,
MHCLG,PINS,03/07/2019,Agency Staff,"Finance, Commercial & Performance",REED SPECIALIST RECRUITMENT LTD,,Large,,5106248639,AA Storekeeper,SW20 0BA,371.10,
MHCLG,PINS,03/07/2019,NSI Fees & Expenses,NSI Fees Planning,ANDREW DALE,,Data Not Provided,,5106248626,NSI Fees,DE23 8DP,"1,630.00",
MHCLG,PINS,03/07/2019,NSI Fees & Expenses,NSI Expenses Planning,ANDREW DALE,,Data Not Provided,,5106248626,NSI Expenses,DE23 8DP,242.60,
MHCLG,PINS,03/07/2019,NSI Fees & Expenses,NSI Fees Planning,CAMBRIDGE PLANNING SERVICES,,Data Not Provided,,5106248653,NSI Fees,CB3 0HS,"2,100.00",
MHCLG,PINS,03/07/2019,NSI Fees & Expenses,NSI Expenses Planning,CAMBRIDGE PLANNING SERVICES,,Data Not Provided,,5106248653,NSI Expenses,CB3 0HS,66.30,
MHCLG,PINS,03/07/2019,NSI Fees & Expenses,NSI Fees Planning,CHEC PLANNING LTD,,Micro,,5106248632,NSI Fees,CB6 3PG,"2,100.00",
MHCLG,PINS,03/07/2019,NSI Fees & Expenses,NSI Expenses Planning,CHEC PLANNING LTD,,Micro,,5106248632,NSI Expenses,CB6 3PG,136.98,
MHCLG,PINS,03/07/2019,NSI Fees & Expenses,NSI Fees Planning,COUPER PLANNING SERVICES LTD,,Micro,,2100073213,NSI Fees,WR5 2AG,"-1,890.00",
MHCLG,PINS,03/07/2019,NSI Fees & Expenses,NSI Expenses Planning,COUPER PLANNING SERVICES LTD,,Micro,,2100073213,NSI Expenses,WR5 2AG,-390.66,
MHCLG,PINS,03/07/2019,NSI Fees & Expenses,NSI Fees Planning,COUPER PLANNING SERVICES LTD,,Micro,,5106248659,NSI Fees,WR5 2AG,"1,890.00",
MHCLG,PINS,03/07/2019,NSI Fees & Expenses,NSI Expenses Planning,COUPER PLANNING SERVICES LTD,,Micro,,5106248659,NSI Expenses,WR5 2AG,390.66,
MHCLG,PINS,03/07/2019,NSI Fees & Expenses,NSI Fees Planning,DAVIS PLANNING LIMITED,,Small,,5106248649,NSI Fees,RG41 3HL,"1,680.00",
MHCLG,PINS,03/07/2019,NSI Fees & Expenses,NSI Expenses Planning,DAVIS PLANNING LIMITED,,Small,,5106248649,NSI Expenses,RG41 3HL,70.74,
MHCLG,PINS,03/07/2019,NSI Fees & Expenses,NSI Fees Planning,FITZSIMON PLANNING & DEVELOPMENT,,Micro,,2100073214,NSI Fees,CH7 5NL,"-1,400.00",
MHCLG,PINS,03/07/2019,NSI Fees & Expenses,NSI Expenses Planning,FITZSIMON PLANNING & DEVELOPMENT,,Micro,,2100073214,NSI Expenses,CH7 5NL,-350.00,
MHCLG,PINS,03/07/2019,NSI Fees & Expenses,NSI Fees Planning,FITZSIMON PLANNING & DEVELOPMENT,,Micro,,5106248666,NSI Fees,CH7 5NL,"1,400.00",
MHCLG,PINS,03/07/2019,NSI Fees & Expenses,NSI Expenses Planning,FITZSIMON PLANNING & DEVELOPMENT,,Micro,,5106248666,NSI Expenses,CH7 5NL,350.00,
MHCLG,PINS,03/07/2019,NSI Fees & Expenses,NSI Fees Planning,G E PLANNING,,Small,,5106248609,NSI Fees,RG24 8SA,"1,200.00",
MHCLG,PINS,03/07/2019,NSI Fees & Expenses,NSI Expenses Planning,G E PLANNING,,Small,,5106248609,NSI Expenses,RG24 8SA,56.58,
MHCLG,PINS,03/07/2019,NSI Fees & Expenses,NSI Fees Planning,G E PLANNING,,Small,,5106248654,NSI Fees,RG24 8SA,"1,615.00",
MHCLG,PINS,03/07/2019,NSI Fees & Expenses,NSI Expenses Planning,G E PLANNING,,Small,,5106248654,NSI Expenses,RG24 8SA,220.60,
MHCLG,PINS,03/07/2019,NSI Fees & Expenses,NSI Fees Planning,GRAHAM SELF,,Small,,5106248615,NSI Fees,BS31 3EG,"2,190.00",
MHCLG,PINS,03/07/2019,NSI Fees & Expenses,NSI Expenses Planning,GRAHAM SELF,,Small,,5106248615,NSI Expenses,BS31 3EG,102.55,
MHCLG,PINS,03/07/2019,NSI Fees & Expenses,NSI Fees Planning,JS CONSERVATION MANAGEMENT &,,Small,,5106248647,NSI Fees,LS27 0BD,"3,060.00",
MHCLG,PINS,03/07/2019,NSI Fees & Expenses,NSI Expenses Planning,JS CONSERVATION MANAGEMENT &,,Small,,5106248647,NSI Expenses,LS27 0BD,48.15,
MHCLG,PINS,03/07/2019,NSI Fees & Expenses,NSI Fees Planning,RACHAEL BARTLETT,,Small,,5106248629,NSI Fees,DN14 6JU,"1,400.00",
MHCLG,PINS,03/07/2019,NSI Fees & Expenses,NSI Expenses Planning,RACHAEL BARTLETT,,Small,,5106248629,NSI Expenses,DN14 6JU,131.84,
MHCLG,PINS,03/07/2019,NSI Fees & Expenses,NSI Fees Planning,SIMPLY PLANNING LIMITED,,Small,,5106248628,NSI Fees,BT23 6NR,"2,040.00",
MHCLG,PINS,03/07/2019,NSI Fees & Expenses,NSI Expenses Planning,SIMPLY PLANNING LIMITED,,Small,,5106248628,NSI Expenses,BT23 6NR,151.74,
MHCLG,PINS,03/07/2019,NSI Fees & Expenses,NSI Fees Planning,SIMPLY PLANNING LIMITED,,Small,,5106248630,NSI Fees,BT23 6NR,"2,250.00",
MHCLG,PINS,03/07/2019,NSI Fees & Expenses,NSI Expenses Planning,SIMPLY PLANNING LIMITED,,Small,,5106248630,NSI Expenses,BT23 6NR,154.08,
MHCLG,PINS,03/07/2019,NSI Fees & Expenses,NSI Fees Planning,STAR PLANNING & DEVELOPMENT LTD,,Micro,,5106248635,NSI Fees,B14 6BX,"1,680.00",
MHCLG,PINS,03/07/2019,NSI Fees & Expenses,NSI Expenses Planning,STAR PLANNING & DEVELOPMENT LTD,,Micro,,5106248635,NSI Expenses,B14 6BX,126.56,
MHCLG,PINS,03/07/2019,NSI Fees & Expenses,NSI Fees Planning,STAR PLANNING & DEVELOPMENT LTD,,Micro,,5106248636,NSI Fees,B14 6BX,"1,530.00",
MHCLG,PINS,03/07/2019,NSI Fees & Expenses,NSI Expenses Planning,STAR PLANNING & DEVELOPMENT LTD,,Micro,,5106248636,NSI Expenses,B14 6BX,74.51,
MHCLG,PINS,03/07/2019,NSI Fees & Expenses,NSI Fees Planning,STAR PLANNING & DEVELOPMENT LTD,,Micro,,5106248637,NSI Fees,B14 6BX,"1,560.00",
MHCLG,PINS,03/07/2019,NSI Fees & Expenses,NSI Expenses Planning,STAR PLANNING & DEVELOPMENT LTD,,Micro,,5106248637,NSI Expenses,B14 6BX,65.88,
MHCLG,PINS,03/07/2019,NSI Fees & Expenses,NSI Fees Planning,STAR PLANNING & DEVELOPMENT LTD,,Micro,,5106248640,NSI Fees,B14 6BX,"1,260.00",
MHCLG,PINS,03/07/2019,NSI Fees & Expenses,NSI Expenses Planning,STAR PLANNING & DEVELOPMENT LTD,,Micro,,5106248640,NSI Expenses,B14 6BX,113.40,
MHCLG,PINS,03/07/2019,NSI Fees & Expenses,NSI Fees Planning,STORRIE PLANNING,,Small,,5106248613,NSI Fees,HD1 6RX,425.00,
MHCLG,PINS,03/07/2019,NSI Fees & Expenses,NSI Expenses Planning,STORRIE PLANNING,,Small,,5106248613,NSI Expenses,HD1 6RX,109.80,
MHCLG,PINS,03/07/2019,Specialist Technical Support,Performance Recovery,HAYS SPECIALIST RECRUITMENT LTD,,Large,,5106248285,Business Intelligence Developer,NW1 2AF,"2,830.32",
MHCLG,PINS,03/07/2019,Specialist Technical Support,Performance Recovery,HAYS SPECIALIST RECRUITMENT LTD,,Large,,5106248479,Business Intelligence Developer,NW1 2AF,"2,830.32",
MHCLG,PINS,03/07/2019,Specialist Technical Support,ICT Digital Services,REED SPECIALIST RECRUITMENT LTD,,Large,,5106248573,Contract Extension EM,SW20 0BA,985.07,
MHCLG,PINS,03/07/2019,Vehicle hire,Inspector Costs,ENTERPRISE RENT-A-CAR,,Large,,5106248627,car hire 19/20,TW20 9FB,"17,907.01",
MHCLG,PINS,04/07/2019,Agency Staff,Inspector Development & Support Team,REED SPECIALIST RECRUITMENT LTD,,Large,,5106248676,Temp staff for IDST-SC,SW20 0BA,592.20,
MHCLG,PINS,04/07/2019,Agency Staff,"Finance, Commercial & Performance",REED SPECIALIST RECRUITMENT LTD,,Large,,5106248682,EO Finance GT,SW20 0BA,521.17,
MHCLG,PINS,04/07/2019,IT - Software Maintenance,Performance Recovery,SOFTWARE BOX LTD,,Large,,5106248697,Mtce & support fee,YO61 1ET,"37,696.58",
MHCLG,PINS,04/07/2019,IT - Software Maintenance,ICT Digital Services,SOFTWARE BOX LTD,,Large,,5106248697,Mtce & support fee,YO61 1ET,"30,157.28",
MHCLG,PINS,04/07/2019,NSI Fees & Expenses,NSI Fees Planning,C G DOWN,,Data Not Provided,,5106248661,NSI Fees,CV21 3JN,"1,400.00",
MHCLG,PINS,04/07/2019,NSI Fees & Expenses,NSI Expenses Planning,C G DOWN,,Data Not Provided,,5106248661,NSI Expenses,CV21 3JN,85.20,
MHCLG,PINS,04/07/2019,NSI Fees & Expenses,NSI Fees Planning,COUPER PLANNING SERVICES LTD,,Micro,,5106248689,NSI Fees,WR5 2AG,"2,040.00",
MHCLG,PINS,04/07/2019,NSI Fees & Expenses,NSI Expenses Planning,COUPER PLANNING SERVICES LTD,,Micro,,5106248689,NSI Expenses,WR5 2AG,240.66,
MHCLG,PINS,04/07/2019,NSI Fees & Expenses,NSI Fees Planning,JDA DEVELOPMENT & PLANNING SERVICE,,Micro,,5106248664,NSI Fees,TA14 6PT,"1,750.00",
MHCLG,PINS,04/07/2019,NSI Fees & Expenses,NSI Expenses Planning,JDA DEVELOPMENT & PLANNING SERVICE,,Micro,,5106248664,NSI Expenses,TA14 6PT,138.75,
MHCLG,PINS,04/07/2019,NSI Fees & Expenses,NSI Fees Planning,LJE PLANNING LTD,,Data Not Provided,,5106248672,NSI Fees,SO22 6RT,"2,460.00",
MHCLG,PINS,04/07/2019,NSI Fees & Expenses,NSI Expenses Planning,LJE PLANNING LTD,,Data Not Provided,,5106248672,NSI Expenses,SO22 6RT,108.18,
MHCLG,PINS,04/07/2019,NSI Fees & Expenses,NSI Fees Planning,MARTIN ANDREWS PLANNING CONSULTANCY,,Micro,,5106248685,NSI Fees,BH15 1HH,"2,190.00",
MHCLG,PINS,04/07/2019,NSI Fees & Expenses,NSI Expenses Planning,MARTIN ANDREWS PLANNING CONSULTANCY,,Micro,,5106248685,NSI Expenses,BH15 1HH,297.70,
MHCLG,PINS,04/07/2019,NSI Fees & Expenses,NSI Fees Planning,RCA REGENERATION LTD,,Small,,5106248696,NSI Fees,WR9 0QE,"1,788.00",
MHCLG,PINS,04/07/2019,NSI Fees & Expenses,NSI Expenses Planning,RCA REGENERATION LTD,,Small,,5106248696,NSI Planning,WR9 0QE,149.04,
MHCLG,PINS,04/07/2019,NSI Fees & Expenses,NSI Fees Planning,S P PLANNING,,Small,,5106248673,NSI Fees,EC1M 5QA,"2,250.00",
MHCLG,PINS,04/07/2019,NSI Fees & Expenses,NSI Expenses Planning,S P PLANNING,,Small,,5106248673,NSI Expenses,EC1M 5QA,66.84,
MHCLG,PINS,04/07/2019,NSI Fees & Expenses,NSI Fees Planning,STORRIE PLANNING,,Small,,5106248692,NSI Fees,HD1 6RX,"1,750.00",
MHCLG,PINS,04/07/2019,NSI Fees & Expenses,NSI Expenses Planning,STORRIE PLANNING,,Small,,5106248692,NSI Expenses,HD1 6RX,64.80,
MHCLG,PINS,04/07/2019,Software Licences,Performance Recovery,SOFTWARE BOX LTD,,Large,,5106248697,Content suite etc. ,YO61 1ET,"159,830.72",
MHCLG,PINS,04/07/2019,Software Licences,ICT Digital Services,SOFTWARE BOX LTD,,Large,,5106248697,Content suite etc,YO61 1ET,"135,188.42",
MHCLG,PINS,04/07/2019,Specialist Technical Support,Transformation Prog Management Office,KETL LIMITED,,Small,,5106248461,Performance assurance,BS1 3BN,"2,624.09",
MHCLG,PINS,04/07/2019,Training,TR People,HOWARD DAVIS CONSULTANCY LTD,,Micro,,5106248665,Exec coaching - SR,GL20 7SL,"1,050.00",
MHCLG,PINS,04/07/2019,Training,Human Resources,LEE HECHT HARRISON PENNA LTD,,Large,,5106248655,Prof Cons Service - PH,EC3V 0EE,360.00,
MHCLG,PINS,05/07/2019,Internal Audit,"Finance, Commercial & Performance",H M TREASURY,,Public Bodies,,5106248616,Internal Audit 19-20,NR7 0HS,"11,625.00",
MHCLG,PINS,05/07/2019,IT - Service Contracts,ICT Digital Services,ZSAH LTD,,Small,,5106248608,Fully managed  Dev  environment -,SW7 3HE,"2,259.48",
MHCLG,PINS,05/07/2019,IT Systems Testing & Auditing,ICT Digital Services,INFO-ASSURE LTD,,Small,,2100073290,CHECK Team Leader - Infrastructure,GU14 0LX,"-2,385.00",
MHCLG,PINS,05/07/2019,IT Systems Testing & Auditing,ICT Digital Services,INFO-ASSURE LTD,,Small,,5106248699,CHECK Team Leader - Infrastructure,GU14 0LX,"2,385.00",
MHCLG,PINS,05/07/2019,NSI Fees & Expenses,NSI Fees Planning,BEACON HILL PRACTICE LTD,,Small,,5106248762,NSI Fees,RH7 6RH,"3,825.00",
MHCLG,PINS,05/07/2019,NSI Fees & Expenses,NSI Expenses Planning,BEACON HILL PRACTICE LTD,,Small,,5106248762,NSI Expenses,RH7 6RH,65.40,
MHCLG,PINS,05/07/2019,NSI Fees & Expenses,NSI Fees Planning,COUPER PLANNING SERVICES LTD,,Micro,,5106248718,NSI Fees,WR5 2AG,"2,040.00",
MHCLG,PINS,05/07/2019,NSI Fees & Expenses,NSI Expenses Planning,COUPER PLANNING SERVICES LTD,,Micro,,5106248718,NSI Expenses,WR5 2AG,240.66,
MHCLG,PINS,05/07/2019,NSI Fees & Expenses,NSI Fees Planning,ELDNAR LTD,,Micro,,5106248712,NSI Fees,WR6 6QD,850.00,
MHCLG,PINS,05/07/2019,NSI Fees & Expenses,NSI Fees Planning,FITZSIMON PLANNING & DEVELOPMENT,,Micro,,5106248719,NSI Fees,CH7 5NL,"1,750.00",
MHCLG,PINS,05/07/2019,NSI Fees & Expenses,NSI Fees Planning,GARY DEANE ASSOCIATES LIMITED,,Micro,,5106248750,NSI Fees,M33 6RG,"2,040.00",
MHCLG,PINS,05/07/2019,NSI Fees & Expenses,NSI Expenses Planning,GARY DEANE ASSOCIATES LIMITED,,Micro,,5106248750,NSI Expenses,M33 6RG,144.72,
MHCLG,PINS,05/07/2019,NSI Fees & Expenses,TR Transformation,HAYS SPECIALIST RECRUITMENT LTD,,Large,,5106248702,Test Manager ODT,NW1 2AF,"3,058.02",
MHCLG,PINS,05/07/2019,NSI Fees & Expenses,TR Transformation,HAYS SPECIALIST RECRUITMENT LTD,,Large,,5106248706,Agile Delivery Manager,NW1 2AF,"1,698.91",
MHCLG,PINS,05/07/2019,NSI Fees & Expenses,TR Transformation,HAYS SPECIALIST RECRUITMENT LTD,,Large,,5106248720,Test Analyst ODT,NW1 2AF,"1,748.52",
MHCLG,PINS,05/07/2019,NSI Fees & Expenses,NSI Fees Planning,IMCH PLANNING & DEVELOPMENT CONS,,Data Not Provided,,5106248716,NSI Fees,DE72 3QP,"1,680.00",
MHCLG,PINS,05/07/2019,NSI Fees & Expenses,NSI Expenses Planning,IMCH PLANNING & DEVELOPMENT CONS,,Data Not Provided,,5106248716,NSI Expenses,DE72 3QP,109.08,
MHCLG,PINS,05/07/2019,NSI Fees & Expenses,NSI Fees Planning,KIM BENNETT PLANNING SERVICES,,Micro,,5106248705,NSI Fees,CT2 7ET,915.00,
MHCLG,PINS,05/07/2019,NSI Fees & Expenses,NSI Expenses Planning,KIM BENNETT PLANNING SERVICES,,Micro,,5106248705,NSI Expenses,CT2 7ET,97.80,
MHCLG,PINS,05/07/2019,NSI Fees & Expenses,NSI Fees Planning,SANDRA WHITEHEAD,,Micro,,5106248709,NSI Fees,PL14 4SR,"1,400.00",
MHCLG,PINS,05/07/2019,NSI Fees & Expenses,NSI Expenses Planning,SANDRA WHITEHEAD,,Micro,,5106248709,NSI Expenses,PL14 4SR,521.28,
MHCLG,PINS,05/07/2019,NSI Fees & Expenses,NSI Fees Planning,STORRIE PLANNING,,Small,,5106248727,NSI Fees,HD1 6RX,425.00,
MHCLG,PINS,05/07/2019,NSI Fees & Expenses,NSI Fees Planning,TERRENCE KEMMANN-LANE,,Data Not Provided,,5106248730,NSI Fees,IP10 0ET,"1,700.00",
MHCLG,PINS,05/07/2019,NSI Fees & Expenses,NSI Expenses Planning,TERRENCE KEMMANN-LANE,,Data Not Provided,,5106248730,NSI Expenses,IP10 0ET,48.37,
MHCLG,PINS,05/07/2019,Specialist Technical Support,"Finance, Commercial & Performance",ALLEN LANE LTD,,Medium,,5106248658,2019 Extension,SW1Y 6RJ,"2,056.61",
MHCLG,PINS,05/07/2019,Specialist Technical Support,TR Transformation,HAYS SPECIALIST RECRUITMENT LTD,,Large,,5106248703,ODT Training Manager,NW1 2AF,"3,176.94",
MHCLG,PINS,05/07/2019,Specialist Technical Support,ICT Digital Services,HAYS SPECIALIST RECRUITMENT LTD,,Large,,5106248714,O365 specialist,NW1 2AF,"2,494.32",
MHCLG,PINS,05/07/2019,Specialist Technical Support,ICT Digital Services,MEDLEY BUSINESS SOLUTIONS LIMITED,,Medium,,2100073289,Services of a Digital Architect,GU4 8PR,"-19,008.00",
MHCLG,PINS,05/07/2019,Specialist Technical Support,ICT Digital Services,MEDLEY BUSINESS SOLUTIONS LIMITED,,Medium,,5106248671,Services of a Digital Architect,GU4 8PR,"19,008.00",
MHCLG,PINS,05/07/2019,Specialist Technical Support,TR Organisational Agility,PA CONSULTING SERVICES LIMITED,,Large,,5106248765,OD&D Variation 6,SW1W 9SR,"59,466.00",
MHCLG,PINS,08/07/2019,Agency Staff,Human Resources,HAYS SPECIALIST RECRUITMENT LTD,,Large,,5106248798,HR Recruitment Coordinator Resource,NW1 2AF,476.76,
MHCLG,PINS,08/07/2019,Courier Services,Estates,ROYAL MAIL,,Large,,5106248800,Postal services VAT 19/20,S49 1HQ,"2,171.15",
MHCLG,PINS,08/07/2019,NSI Fees & Expenses,NSI Fees Planning,ANTHONY THOMPSON,,Micro,,5106248803,NSI Fees,SM2 5HS,"1,575.00",
MHCLG,PINS,08/07/2019,NSI Fees & Expenses,NSI Expenses Planning,ANTHONY THOMPSON,,Micro,,5106248803,NSI Expenses,SM2 5HS,52.70,
MHCLG,PINS,08/07/2019,NSI Fees & Expenses,NSI Fees Planning,VICTOR CALLISTER,,Small,,5106248802,NSI Fees,E1 1LQ,"1,700.00",
MHCLG,PINS,08/07/2019,NSI Fees & Expenses,NSI Expenses Planning,VICTOR CALLISTER,,Small,,5106248802,NSI Expenses,E1 1LQ,17.10,
MHCLG,PINS,08/07/2019,Specialist Technical Support,ICT Digital Services,HAYS SPECIALIST RECRUITMENT LTD,,Large,,5106248723,ITMP PDM,NW1 2AF,"4,660.50",
MHCLG,PINS,08/07/2019,Specialist Technical Support,ICT Digital Services,HAYS SPECIALIST RECRUITMENT LTD,,Large,,5106248549,O365 specialist,NW1 2AF,"2,494.32",
MHCLG,PINS,08/07/2019,Specialist Technical Support,ICT Digital Services,HAYS SPECIALIST RECRUITMENT LTD,,Large,,5106248806,BA with O365 exp,NW1 2AF,"3,497.28",
MHCLG,PINS,08/07/2019,Training,Chief Executive,ASSOCIATION OF CHIEF EXECUTIVE,,Micro,,5106248771,Attendance at Chief Exec Conference,SW1Y 5AA,500.00,
MHCLG,PINS,08/07/2019,Travel and Subsistence Account,Inspector Costs,REDFERN TRAVEL LIMITED,,Small,,5106248805,Air Tickets,BD1 3AZ,503.63,
MHCLG,PINS,08/07/2019,Travel and Subsistence Account,Inspector Costs,REDFERN TRAVEL LIMITED,,Small,,5106248805,Billback Fee,BD1 3AZ,42.50,
MHCLG,PINS,08/07/2019,Travel and Subsistence Account,Inspector Costs,REDFERN TRAVEL LIMITED,,Small,,5106248805,Ferry,BD1 3AZ,124.22,
MHCLG,PINS,08/07/2019,Travel and Subsistence Account,Inspector Costs,REDFERN TRAVEL LIMITED,,Small,,5106248805,Rail Fees,BD1 3AZ,482.58,
MHCLG,PINS,08/07/2019,Travel and Subsistence Account,Inspector Costs,REDFERN TRAVEL LIMITED,,Small,,5106248805,Train Tickets,BD1 3AZ,"42,999.85",
MHCLG,PINS,08/07/2019,Travel and Subsistence Account,Inspector Costs,REDFERN TRAVEL LIMITED,,Small,,5106248805,Web Transaction,BD1 3AZ,"1,038.46",
MHCLG,PINS,08/07/2019,Travel and Subsistence Account,Inspector Costs,REDFERN TRAVEL LIMITED,,Small,,5106248805,Hotel,BD1 3AZ,"78,323.06",
MHCLG,PINS,08/07/2019,Travel and Subsistence Account,Inspector Costs,REDFERN TRAVEL LIMITED,,Small,,5106248805,Hotel (Foreign),BD1 3AZ,542.99,
MHCLG,PINS,08/07/2019,Travel and Subsistence Account,Inspector Costs,REDFERN TRAVEL LIMITED,,Small,,5106248805,Hotel Fees,BD1 3AZ,337.25,
MHCLG,PINS,09/07/2019,Agency Staff,"Finance, Commercial & Performance",REED SPECIALIST RECRUITMENT LTD,,Large,,5106248830,AO Commercial Assistant,SW20 0BA,562.99,
MHCLG,PINS,09/07/2019,Agency Staff,TR Transformation,REED SPECIALIST RECRUITMENT LTD,,Large,,5106248832,EO ODT Project Support Officer,SW20 0BA,946.70,
MHCLG,PINS,09/07/2019,Agency Staff,"Finance, Commercial & Performance",REED SPECIALIST RECRUITMENT LTD,,Large,,5106248847,AA Storekeeper,SW20 0BA,371.10,
MHCLG,PINS,09/07/2019,Agency Staff,"Finance, Commercial & Performance",REED SPECIALIST RECRUITMENT LTD,,Large,,5106248867,AO Commercial Assistant,SW20 0BA,456.48,
MHCLG,PINS,09/07/2019,IT Systems Testing & Auditing,ICT Digital Services,INFO-ASSURE LTD,,Small,,5106248856,Professional services May 2019,GU14 0LX,"2,385.00",
MHCLG,PINS,09/07/2019,NSI Fees & Expenses,NSI Fees Planning,APS APPEALS &PLANNING SERVICES,,Micro,,5106248866,NSI Fees,OL16 4SW,"1,650.00",
MHCLG,PINS,09/07/2019,NSI Fees & Expenses,NSI Expenses Planning,APS APPEALS &PLANNING SERVICES,,Micro,,5106248866,NSI Expenses,OL16 4SW,286.95,
MHCLG,PINS,09/07/2019,NSI Fees & Expenses,NSI Fees Planning,ERIMAX LTD,,Data Not Provided,,5106248829,NSI Fees,WA15 9LH,"2,190.00",
MHCLG,PINS,09/07/2019,NSI Fees & Expenses,NSI Expenses Planning,ERIMAX LTD,,Data Not Provided,,5106248829,NSI Expenses,WA15 9LH,281.58,
MHCLG,PINS,09/07/2019,NSI Fees & Expenses,NSI Fees Planning,ERIMAX LTD,,Data Not Provided,,5106248841,NSI Fees,WA15 9LH,"3,570.00",
MHCLG,PINS,09/07/2019,NSI Fees & Expenses,NSI Expenses Planning,ERIMAX LTD,,Data Not Provided,,5106248841,NSI Expenses,WA15 9LH,390.12,
MHCLG,PINS,09/07/2019,NSI Fees & Expenses,NSI Fees Planning,ERIMAX LTD,,Data Not Provided,,5106248844,NSI Fees,WA15 9LH,"3,276.00",
MHCLG,PINS,09/07/2019,NSI Fees & Expenses,NSI Expenses Planning,ERIMAX LTD,,Data Not Provided,,5106248844,NSI Expenses,WA15 9LH,345.30,
MHCLG,PINS,09/07/2019,NSI Fees & Expenses,NSI Fees Planning,FITZSIMON PLANNING & DEVELOPMENT,,Micro,,2100073396,NSI Fees,CH7 5NL,"-2,100.00",
MHCLG,PINS,09/07/2019,NSI Fees & Expenses,NSI Expenses Planning,FITZSIMON PLANNING & DEVELOPMENT,,Micro,,2100073396,NSI Expenses,CH7 5NL,-250.00,
MHCLG,PINS,09/07/2019,NSI Fees & Expenses,NSI Fees Planning,FITZSIMON PLANNING & DEVELOPMENT,,Micro,,5106248843,NSI Fees,CH7 5NL,"2,100.00",
MHCLG,PINS,09/07/2019,NSI Fees & Expenses,NSI Expenses Planning,FITZSIMON PLANNING & DEVELOPMENT,,Micro,,5106248843,NSI Expenses,CH7 5NL,250.00,
MHCLG,PINS,09/07/2019,NSI Fees & Expenses,NSI Fees Planning,JS CONSERVATION MANAGEMENT &,,Small,,5106248865,NSI Fees,LS27 0BD,"2,820.00",
MHCLG,PINS,09/07/2019,NSI Fees & Expenses,NSI Expenses Planning,JS CONSERVATION MANAGEMENT &,,Small,,5106248865,NSI Expenses,LS27 0BD,147.90,
MHCLG,PINS,09/07/2019,NSI Fees & Expenses,NSI Fees Planning,MARTIN ANDREWS PLANNING CONSULTANCY,,Micro,,5106248872,NSI Fees,BH15 1HH,"1,860.00",
MHCLG,PINS,09/07/2019,NSI Fees & Expenses,NSI Expenses Planning,MARTIN ANDREWS PLANNING CONSULTANCY,,Micro,,5106248872,NSI Expenses,BH15 1HH,104.94,
MHCLG,PINS,09/07/2019,NSI Fees & Expenses,NSI Fees Planning,MISS MEGAN THOMAS,,Data Not Provided,,5106248842,NSI Fees,EC4Y 7AR,"1,680.00",
MHCLG,PINS,09/07/2019,NSI Fees & Expenses,NSI Expenses Planning,MISS MEGAN THOMAS,,Data Not Provided,,5106248842,NSI Expenses,EC4Y 7AR,106.05,
MHCLG,PINS,09/07/2019,NSI Fees & Expenses,NSI Fees Planning,MISS MEGAN THOMAS,,Data Not Provided,,5106248849,NSI Fees,EC4Y 7AR,"1,680.00",
MHCLG,PINS,09/07/2019,NSI Fees & Expenses,NSI Expenses Planning,MISS MEGAN THOMAS,,Data Not Provided,,5106248849,NSI Expenses,EC4Y 7AR,60.10,
MHCLG,PINS,09/07/2019,NSI Fees & Expenses,NSI Fees Planning,PJS DEVELOPMENT SOLUTIONS LTD,,Micro,,5106248864,NSI Fees,GL2 0DU,"2,040.00",
MHCLG,PINS,09/07/2019,NSI Fees & Expenses,NSI Expenses Planning,PJS DEVELOPMENT SOLUTIONS LTD,,Micro,,5106248864,NSI Expenses,GL2 0DU,126.90,
MHCLG,PINS,09/07/2019,Payroll Services,Human Resources,CGI IT UK LIMITED,,Large,,5106248824,Payroll Services 2019/20,CF31 9AP,"4,582.36",
MHCLG,PINS,09/07/2019,Specialist Technical Support,Corporate Services Director,HAYS SPECIALIST RECRUITMENT LTD,,Large,,5106248503,Data Protection Liaison Officer,NW1 2AF,"3,580.50",
MHCLG,PINS,09/07/2019,Specialist Technical Support,Corporate Services Director,HAYS SPECIALIST RECRUITMENT LTD,,Large,,5106248710,Data Protection Liaison Officer,NW1 2AF,"3,580.50",
MHCLG,PINS,09/07/2019,Specialist Technical Support,Performance Recovery,HAYS SPECIALIST RECRUITMENT LTD,,Large,,5106248724,Business Intelligence Developer,NW1 2AF,"2,830.32",
MHCLG,PINS,09/07/2019,Specialist Technical Support,ICT Digital Services,MEDLEY BUSINESS SOLUTIONS LIMITED,,Medium,,5106248828,Digital Architect,GU4 8PR,"19,008.00",
MHCLG,PINS,09/07/2019,Translations,Wales Director,TROSOL CYFYNGEDIG,,Small,,5106248851,Pins Wales translation costs extension,CF14 5GH,"6,292.80",
MHCLG,PINS,09/07/2019,Translations,Wales Director,TROSOL CYFYNGEDIG,,Small,,5106248852,Pins Wales translation costs extension,CF14 5GH,"1,945.02",
MHCLG,PINS,09/07/2019,Translations,Infrastructure Planning,TROSOL CYFYNGEDIG,,Small,,5106248870,Welsh Translation Services NID,CF14 5GH,230.70,
MHCLG,PINS,10/07/2019,IT Maintenance,ICT Digital Services,X M A LTD,,Data Not Provided,,5106248915,Hardware maintenance,NG11 7EP,646.32,
MHCLG,PINS,10/07/2019,NSI Fees & Expenses,NSI Fees Planning,CHEC PLANNING LTD,,Micro,,5106248916,NSI Fees,CB6 3PG,"1,680.00",
MHCLG,PINS,10/07/2019,NSI Fees & Expenses,NSI Expenses Planning,CHEC PLANNING LTD,,Micro,,5106248916,NSI Expenses,CB6 3PG,120.24,
MHCLG,PINS,10/07/2019,NSI Fees & Expenses,NSI Fees Planning,COUPER PLANNING SERVICES LTD,,Micro,,5106248905,NSI Fees,WR5 2AG,"1,530.00",
MHCLG,PINS,10/07/2019,NSI Fees & Expenses,NSI Expenses Planning,COUPER PLANNING SERVICES LTD,,Micro,,5106248905,NSI Expenses,WR5 2AG,71.64,
MHCLG,PINS,10/07/2019,NSI Fees & Expenses,NSI Fees Planning,DESIGN 2,,Micro,,5106248918,NSI Fees,PO20 0HX,630.00,
MHCLG,PINS,10/07/2019,NSI Fees & Expenses,NSI Fees Planning,ERIMAX LTD,,Data Not Provided,,2100073445,NSI Fees,WA15 9LH,"-4,857.60",
MHCLG,PINS,10/07/2019,NSI Fees & Expenses,NSI Fees Planning,ERIMAX LTD,,Data Not Provided,,5106248900,NSI Fees,WA15 9LH,"4,857.60",
MHCLG,PINS,10/07/2019,NSI Fees & Expenses,NSI Fees Planning,ERIMAX LTD,,Data Not Provided,,5106248901,NSI Fees,WA15 9LH,"2,400.00",
MHCLG,PINS,10/07/2019,NSI Fees & Expenses,NSI Expenses Planning,ERIMAX LTD,,Data Not Provided,,5106248901,NSI Expenses,WA15 9LH,73.08,
MHCLG,PINS,10/07/2019,NSI Fees & Expenses,NSI Expenses Planning,FITZSIMON PLANNING & DEVELOPMENT,,Micro,,5106248871,NSI Expenses,CH7 5NL,275.40,
MHCLG,PINS,10/07/2019,NSI Fees & Expenses,NSI Fees Planning,HARTLEY PLANNING&DEVELOPMENT ASSOCI,,Micro,,5106248917,NSI Fees,BB4 8TB,"1,700.00",
MHCLG,PINS,10/07/2019,NSI Fees & Expenses,NSI Expenses Planning,HARTLEY PLANNING&DEVELOPMENT ASSOCI,,Micro,,5106248917,NSI Expenses,BB4 8TB,322.25,
MHCLG,PINS,10/07/2019,NSI Fees & Expenses,NSI Fees Planning,HARTLEY PLANNING&DEVELOPMENT ASSOCI,,Micro,,5106248920,NSI Fees,BB4 8TB,"1,400.00",
MHCLG,PINS,10/07/2019,NSI Fees & Expenses,NSI Expenses Planning,HARTLEY PLANNING&DEVELOPMENT ASSOCI,,Micro,,5106248920,NSI Expenses,BB4 8TB,405.69,
MHCLG,PINS,10/07/2019,NSI Fees & Expenses,NSI Fees Planning,MARTIN ANDREWS PLANNING CONSULTANCY,,Micro,,5106248897,NSI Fees,BH15 1HH,"2,520.00",
MHCLG,PINS,10/07/2019,NSI Fees & Expenses,NSI Expenses Planning,MARTIN ANDREWS PLANNING CONSULTANCY,,Micro,,5106248897,NSI Expenses,BH15 1HH,123.84,
MHCLG,PINS,10/07/2019,Specialist Technical Support,Research and Development,AIIMI LTD,,Medium,,5106248911,Horizon GoPro Migration PM,MK9 1JL,690.00,
MHCLG,PINS,10/07/2019,Specialist Technical Support,Research and Development,AIIMI LTD,,Medium,,5106248911,Horizon GoPro Migration Tech Support,MK9 1JL,"10,695.00",
MHCLG,PINS,10/07/2019,Specialist Technical Support,Performance Recovery,METHODS BUSINESS AND DIGITAL TECH,,Medium,,5106248707,Power BI Developer,EC1A 4EN,"11,186.34",
MHCLG,PINS,10/07/2019,Specialist Technical Support,Corporate Services Director,METHODS BUSINESS AND DIGITAL TECH,,Medium,,5106248906,Contract extension,EC1A 4EN,"12,930.00",
MHCLG,PINS,10/07/2019,Specialist Technical Support,ICT Digital Services,REED SPECIALIST RECRUITMENT LTD,,Large,,5106248919,Contract ext EM,SW20 0BA,"1,012.06",
MHCLG,PINS,11/07/2019,Courier Services,Wales Director,ROYAL MAIL,,Large,,5106248925,Postal services,S49 1HQ,471.26,
MHCLG,PINS,11/07/2019,EXP � PURCHASE OF GOODS /SERVICES R & D,Research and Development,@ITS(SEARCH&SELECTION)LTD,,Small,,5106248700,ODT Benefits Analyst,EC2V 6DL,"11,310.00",
MHCLG,PINS,11/07/2019,"IT - PC, Network & Hardware",ICT Digital Services,X M A LTD,,Data Not Provided,,5106248833,HPE DL360 gen10 3106 1P 16Gb 85FF server,NG11 7EP,"2,654.29",
MHCLG,PINS,11/07/2019,IT - Software Maintenance,ICT Digital Services,SPECIALIST COMPUTER CENTRES LTD,,Large,,5106248899,Server protection for Virtualization,B11 2LE,"1,925.40",
MHCLG,PINS,11/07/2019,NSI Fees & Expenses,NSI Fees Planning,ANTHONY THOMPSON,,Micro,,5106248928,NSI Fees,SM2 5HS,"1,700.00",
MHCLG,PINS,11/07/2019,NSI Fees & Expenses,NSI Expenses Planning,ANTHONY THOMPSON,,Micro,,5106248928,NSI Expenses,SM2 5HS,32.15,
MHCLG,PINS,11/07/2019,NSI Fees & Expenses,NSI Fees Planning,FITZSIMON PLANNING & DEVELOPMENT,,Micro,,5106248926,NSI Fees,CH7 5NL,"2,350.00",
MHCLG,PINS,11/07/2019,NSI Fees & Expenses,NSI Fees Planning,LANGFORD TEJRAR PLANNING LTD,,Small,,5106248961,NSI Fees,GL20 7EE,"2,250.00",
MHCLG,PINS,11/07/2019,NSI Fees & Expenses,NSI Expenses Planning,LANGFORD TEJRAR PLANNING LTD,,Small,,5106248961,NSI Expenses,GL20 7EE,138.78,
MHCLG,PINS,11/07/2019,NSI Fees & Expenses,NSI Fees Planning,LANGFORD TEJRAR PLANNING LTD,,Small,,5106248965,NSI Fees,GL20 7EE,"2,040.00",
MHCLG,PINS,11/07/2019,NSI Fees & Expenses,NSI Expenses Planning,LANGFORD TEJRAR PLANNING LTD,,Small,,5106248965,NSI Expenses,GL20 7EE,135.54,
MHCLG,PINS,11/07/2019,NSI Fees & Expenses,NSI Fees Planning,LANGFORD TEJRAR PLANNING LTD,,Small,,5106248966,NSI Fees,GL20 7EE,"1,950.00",
MHCLG,PINS,11/07/2019,NSI Fees & Expenses,NSI Expenses Planning,LANGFORD TEJRAR PLANNING LTD,,Small,,5106248966,NSI Expenses,GL20 7EE,99.30,
MHCLG,PINS,11/07/2019,NSI Fees & Expenses,NSI Fees Planning,REBECCA McANDREW,,Micro,,5106248927,NSI Fees,NP44 6JD,"1,475.00",
MHCLG,PINS,11/07/2019,NSI Fees & Expenses,NSI Expenses Planning,REBECCA McANDREW,,Micro,,5106248927,NSI Planning,NP44 6JD,66.15,
MHCLG,PINS,11/07/2019,NSI Fees & Expenses,NSI Fees Planning,STORRIE PLANNING,,Small,,5106248967,NSI Fees,HD1 6RX,425.00,
MHCLG,PINS,11/07/2019,NSI Fees & Expenses,NSI Expenses Planning,STORRIE PLANNING,,Small,,5106248967,NSI Expenses,HD1 6RX,75.60,
MHCLG,PINS,11/07/2019,Office Supplies,Business Support,BANNER BUSINESS SUPPLIES LTD,,Large,,5106248954,office stationary 19/20,S9 1XU,339.56,
MHCLG,PINS,11/07/2019,Payroll Services,Human Resources,CGI IT UK LIMITED,,Large,,5106248924,Payroll Service 2018/19,CF31 9AP,"4,655.15",
MHCLG,PINS,12/07/2019,Agency Staff,Human Resources,HAYS SPECIALIST RECRUITMENT LTD,,Large,,5106248473,HR AO Advice Resource LB,NW1 2AF,"1,029.18",
MHCLG,PINS,12/07/2019,Agency Staff,Human Resources,HAYS SPECIALIST RECRUITMENT LTD,,Large,,5106249016,HR Recruitment Coordinator Resource,NW1 2AF,616.50,
MHCLG,PINS,12/07/2019,Agency Staff,"Finance, Commercial & Performance",REED SPECIALIST RECRUITMENT LTD,,Large,,5106248834,EO for Finance ext,SW20 0BA,888.89,
MHCLG,PINS,12/07/2019,Agency Staff,"Finance, Commercial & Performance",REED SPECIALIST RECRUITMENT LTD,,Large,,5106248837,EO Finance GT,SW20 0BA,889.31,
MHCLG,PINS,12/07/2019,Courier Services,Estates,ROYAL MAIL,,Large,,5106248963,Postal services VAT 19/20,S49 1HQ,"1,308.01",
MHCLG,PINS,12/07/2019,IT - Software Maintenance,ICT Digital Services,SOFTWARE BOX LTD,,Large,,5106248984,Full named users maintenance,YO61 1ET,"19,924.80",
MHCLG,PINS,12/07/2019,NSI Fees & Expenses,NSI Fees Planning,ANDREW DALE,,Data Not Provided,,5106249002,NSI Fees,DE23 8DP,"1,565.00",
MHCLG,PINS,12/07/2019,NSI Fees & Expenses,NSI Fees Planning,ANTHONY THOMPSON,,Micro,,5106249005,NSI Fees,SM2 5HS,"1,400.00",
MHCLG,PINS,12/07/2019,NSI Fees & Expenses,NSI Expenses Planning,ANTHONY THOMPSON,,Micro,,5106249005,NSI Expenses,SM2 5HS,21.15,
MHCLG,PINS,12/07/2019,NSI Fees & Expenses,NSI Fees Planning,CAMBRIDGE PLANNING SERVICES,,Data Not Provided,,5106249007,NSI Fees,CB3 0HS,"2,125.00",
MHCLG,PINS,12/07/2019,NSI Fees & Expenses,NSI Expenses Planning,CAMBRIDGE PLANNING SERVICES,,Data Not Provided,,5106249007,NSI Expenses,CB3 0HS,94.20,
MHCLG,PINS,12/07/2019,NSI Fees & Expenses,NSI Fees Planning,CONTEXT PLANNING LTD,,Micro,,5106248972,NSI Fees,BA1 1BT,"1,825.00",
MHCLG,PINS,12/07/2019,NSI Fees & Expenses,NSI Expenses Planning,CONTEXT PLANNING LTD,,Micro,,5106248972,NSI Planning,BA1 1BT,239.50,
MHCLG,PINS,12/07/2019,NSI Fees & Expenses,NSI Fees Planning,EGGLETON PLANNING AND DESIGN,,Micro,,5106248971,NSI Fees,HG4 2PZ,510.00,
MHCLG,PINS,12/07/2019,NSI Fees & Expenses,NSI Fees Planning,ERIMAX LTD,,Data Not Provided,,5106248977,NSI Fees,WA15 9LH,"4,800.00",
MHCLG,PINS,12/07/2019,NSI Fees & Expenses,NSI Expenses Planning,ERIMAX LTD,,Data Not Provided,,5106248977,NSI Expenses,WA15 9LH,57.60,
MHCLG,PINS,12/07/2019,NSI Fees & Expenses,NSI Fees Planning,ERIMAX LTD,,Data Not Provided,,5106248988,NSI Fees,WA15 9LH,"1,980.00",
MHCLG,PINS,12/07/2019,NSI Fees & Expenses,NSI Expenses Planning,ERIMAX LTD,,Data Not Provided,,5106248988,NSI Expenses,WA15 9LH,361.50,
MHCLG,PINS,12/07/2019,NSI Fees & Expenses,TR Transformation,HAYS SPECIALIST RECRUITMENT LTD,,Large,,5106248980,Agile Delivery Manager,NW1 2AF,"1,698.91",
MHCLG,PINS,12/07/2019,NSI Fees & Expenses,TR Transformation,HAYS SPECIALIST RECRUITMENT LTD,,Large,,5106248981,Test Analyst ODT,NW1 2AF,"1,748.52",
MHCLG,PINS,12/07/2019,NSI Fees & Expenses,TR Transformation,HAYS SPECIALIST RECRUITMENT LTD,,Large,,5106248992,Test Manager ODT,NW1 2AF,"3,058.02",
MHCLG,PINS,12/07/2019,NSI Fees & Expenses,NSI Fees Planning,LOCK ENVIRONMENTAL LTD,,Data Not Provided,,5106248993,NSI Fees,GL55 6QF,"1,550.00",
MHCLG,PINS,12/07/2019,NSI Fees & Expenses,NSI Expenses Planning,LOCK ENVIRONMENTAL LTD,,Data Not Provided,,5106248993,NSI Expenses,GL55 6QF,117.91,
MHCLG,PINS,12/07/2019,NSI Fees & Expenses,NSI Fees Planning,PEARSON PLANNING,,Small,,5106248969,NSI Fees,EH4 9BQ,"1,790.00",
MHCLG,PINS,12/07/2019,NSI Fees & Expenses,NSI Expenses Planning,PEARSON PLANNING,,Small,,5106248969,NSI Expenses,EH4 9BQ,174.36,
MHCLG,PINS,12/07/2019,NSI Fees & Expenses,NSI Fees Planning,PHILIPPA JARVIS PLANNING CONSULTANC,,Data Not Provided,,5106248982,NSI Fees,LU7 2RQ,"2,100.00",
MHCLG,PINS,12/07/2019,NSI Fees & Expenses,NSI Expenses Planning,PHILIPPA JARVIS PLANNING CONSULTANC,,Data Not Provided,,5106248982,NSI Expenses,LU7 2RQ,74.70,
MHCLG,PINS,12/07/2019,NSI Fees & Expenses,NSI Fees Planning,PJS DEVELOPMENT SOLUTIONS LTD,,Micro,,5106248968,NSI Fees,GL2 0DU,"2,040.00",
MHCLG,PINS,12/07/2019,NSI Fees & Expenses,NSI Expenses Planning,PJS DEVELOPMENT SOLUTIONS LTD,,Micro,,5106248968,NSI Expenses,GL2 0DU,168.24,
MHCLG,PINS,12/07/2019,NSI Fees & Expenses,NSI Fees Planning,PLANNING HOUSE GROUP LIMITED,,Small,,5106249008,NSI Fees,SR8 3NR,"1,875.00",
MHCLG,PINS,12/07/2019,NSI Fees & Expenses,NSI Expenses Planning,PLANNING HOUSE GROUP LIMITED,,Small,,5106249008,NSI Expenses,SR8 3NR,126.45,
MHCLG,PINS,12/07/2019,NSI Fees & Expenses,NSI Fees Planning,SANDRA PRAIL LTD,,Micro,,5106249015,NSI Fees,BN16 1RX,"2,136.00",
MHCLG,PINS,12/07/2019,NSI Fees & Expenses,NSI Expenses Planning,SANDRA PRAIL LTD,,Micro,,5106249015,NSI Expenses,BN16 1RX,97.92,
MHCLG,PINS,12/07/2019,Specialist Technical Support,ICT Digital Services,HAYS SPECIALIST RECRUITMENT LTD,,Large,,5106248997,ITMP PDM,NW1 2AF,"4,660.50",
MHCLG,PINS,12/07/2019,Specialist Technical Support,ICT Digital Services,HAYS SPECIALIST RECRUITMENT LTD,,Large,,5106248990,O365 specialist,NW1 2AF,"2,494.32",
MHCLG,PINS,15/07/2019,IT - Software Maintenance,ICT Digital Services,TOWERS WATSON LIMITED,,Large,,5106249028,JEGS framework software rental fee,WC1V 6TP,"2,514.00",
MHCLG,PINS,15/07/2019,NSI Fees & Expenses,NSI Fees Planning,MARTIN ANDREWS PLANNING CONSULTANCY,,Micro,,5106249064,NSI Fees,BH15 1HH,"2,190.00",
MHCLG,PINS,15/07/2019,NSI Fees & Expenses,NSI Expenses Planning,MARTIN ANDREWS PLANNING CONSULTANCY,,Micro,,5106249064,NSI Expenses,BH15 1HH,291.72,
MHCLG,PINS,15/07/2019,NSI Fees & Expenses,NSI Fees Planning,RICHMOND PLANNING AND MARKETING LTD,,Small,,5106249066,NSI Fees,B45 8HX,"1,875.00",
MHCLG,PINS,15/07/2019,NSI Fees & Expenses,NSI Expenses Planning,RICHMOND PLANNING AND MARKETING LTD,,Small,,5106249066,NSI Expenses,B45 8HX,83.33,
MHCLG,PINS,15/07/2019,NSI Fees & Expenses,NSI Fees Planning,STORRIE PLANNING,,Small,,5106249065,NSI Fees,HD1 6RX,"1,300.00",
MHCLG,PINS,15/07/2019,NSI Fees & Expenses,NSI Expenses Planning,STORRIE PLANNING,,Small,,5106249065,NSI Expenses,HD1 6RX,328.93,
MHCLG,PINS,15/07/2019,Physical Storage,Business Support,RESTORE PLC,,Large,,5106248934,offsite storage 19/20,RH1 5DY,"1,297.76",
MHCLG,PINS,15/07/2019,Specialist Technical Support,Performance Recovery,HAYS SPECIALIST RECRUITMENT LTD,,Large,,5106248991,Business Intelligence Developer,NW1 2AF,"2,830.32",
MHCLG,PINS,15/07/2019,Specialist Technical Support,Performance Recovery,METHODS BUSINESS AND DIGITAL TECH,,Medium,,5106248840,Technical Product Owner,EC1A 4EN,"15,352.38",
MHCLG,PINS,15/07/2019,Specialist Technical Support,Performance Recovery,METHODS BUSINESS AND DIGITAL TECH,,Medium,,5106248850,Power BI Developer,EC1A 4EN,"9,870.30",
MHCLG,PINS,16/07/2019,Agency Staff,Human Resources,HAYS SPECIALIST RECRUITMENT LTD,,Large,,5106249089,HR AO Advice Resource LB,NW1 2AF,"1,029.18",
MHCLG,PINS,16/07/2019,Agency Staff,Human Resources,HAYS SPECIALIST RECRUITMENT LTD,,Large,,5106249091,HR AO Advice Resource LB,NW1 2AF,"1,029.18",
MHCLG,PINS,16/07/2019,Agency Staff,Transformation Prog Management Office,REED SPECIALIST RECRUITMENT LTD,,Large,,5106248836,Finance Business Partner,SW20 0BA,"1,429.68",
MHCLG,PINS,16/07/2019,Agency Staff,"Finance, Commercial & Performance",REED SPECIALIST RECRUITMENT LTD,,Large,,5106249076,Commercial AO (ADD),SW20 0BA,609.30,
MHCLG,PINS,16/07/2019,IT SUPPORT,ICT Digital Services,AIIMI LTD,,Medium,,5106249092,Tech Lead & PM,MK9 1JL,"11,407.50",
MHCLG,PINS,16/07/2019,IT SUPPORT,Transformation Prog Management Office,METHODS BUSINESS AND DIGITAL TECH,,Medium,,5106248813,PM for Performance Recovery Project,EC1A 4EN,"19,912.38",
MHCLG,PINS,16/07/2019,NSI Fees & Expenses,NSI Fees Planning,LANGFORD TEJRAR PLANNING LTD,,Small,,2300000135,,GL20 7EE,"-1,680.00",
MHCLG,PINS,16/07/2019,NSI Fees & Expenses,NSI Expenses Planning,LANGFORD TEJRAR PLANNING LTD,,Small,,2300000135,,GL20 7EE,-118.80,
MHCLG,PINS,16/07/2019,Specialist Technical Support,TR Transformation,HAYS SPECIALIST RECRUITMENT LTD,,Large,,5106249069,ODT Training Manager,NW1 2AF,"3,176.94",
MHCLG,PINS,16/07/2019,Specialist Technical Support,Performance Recovery,METHODS BUSINESS AND DIGITAL TECH,,Medium,,5106248838,Power BI Developer,EC1A 4EN,876.78,
MHCLG,PINS,16/07/2019,Specialist Technical Support,Performance Recovery,METHODS BUSINESS AND DIGITAL TECH,,Medium,,5106248839,Inquiry Review PM,EC1A 4EN,"14,004.36",
MHCLG,PINS,16/07/2019,Training,TR Transformation,INSIGHT DIRECT (UK) LTD,,Large,,2100073644,Red Hat PAMLicence,UB8 1PH,"-10,980.31",
MHCLG,PINS,16/07/2019,Training,TR Transformation,INSIGHT DIRECT (UK) LTD,,Large,,5106249090,Red Hat PAMLicence,UB8 1PH,"10,980.31",
MHCLG,PINS,17/07/2019,Agency Staff,Human Resources,HAYS SPECIALIST RECRUITMENT LTD,,Large,,5106249130,HR BP,NW1 2AF,"5,075.22",
MHCLG,PINS,17/07/2019,Agency Staff,TR Transformation,REED SPECIALIST RECRUITMENT LTD,,Large,,5106249075,EO ODT Project Support Officer,SW20 0BA,925.19,
MHCLG,PINS,17/07/2019,Agency Staff,"Policy, Knowledge & Quality",REED SPECIALIST RECRUITMENT LTD,,Large,,5106249127,Agency Staff for Livrary 19-20,SW20 0BA,400.43,
MHCLG,PINS,17/07/2019,Agency Staff,Inspector Development & Support Team,REED SPECIALIST RECRUITMENT LTD,,Large,,5106249195,Temp staff for IDST-SC,SW20 0BA,-418.49,
MHCLG,PINS,17/07/2019,Agency Staff,Inspector Development & Support Team,REED SPECIALIST RECRUITMENT LTD,,Large,,5106249196,Temp staff for IDST-SC,SW20 0BA,418.49,
MHCLG,PINS,17/07/2019,NSI Fees & Expenses,NSI Fees Planning,PJS DEVELOPMENT SOLUTIONS LTD,,Micro,,5106249138,NSI Fees,GL2 0DU,"2,040.00",
MHCLG,PINS,17/07/2019,NSI Fees & Expenses,NSI Expenses Planning,PJS DEVELOPMENT SOLUTIONS LTD,,Micro,,5106249138,NSI Expenses,GL2 0DU,166.44,
MHCLG,PINS,17/07/2019,NSI Fees & Expenses,NSI Fees Planning,PLANNING HOUSE GROUP LIMITED,,Small,,5106249142,NSI Fees,SR8 3NR,"2,125.00",
MHCLG,PINS,17/07/2019,NSI Fees & Expenses,NSI Expenses Planning,PLANNING HOUSE GROUP LIMITED,,Small,,5106249142,NSI Expenses,SR8 3NR,415.83,
MHCLG,PINS,17/07/2019,Printing,Governance & Strategic Support,APS GROUP,,Micro,,5106249118,Printing & Publication of AR,SK3 02P,552.13,
MHCLG,PINS,17/07/2019,Specialist Technical Support,ICT Digital Services,HAYS SPECIALIST RECRUITMENT LTD,,Large,,5106249116,BA with O365 exp,NW1 2AF,"3,497.28",
MHCLG,PINS,18/07/2019,Advertising,ROW,TMP (UK) LIMITED,,Large,,5106249175,Statutory Advertising - ROW,W1T 7RQ,940.93,
MHCLG,PINS,18/07/2019,Agency Staff,Human Resources,HAYS SPECIALIST RECRUITMENT LTD,,Large,,2100073745,HR Recruitment Coordinator Resource,NW1 2AF,-616.50,
MHCLG,PINS,18/07/2019,Agency Staff,Human Resources,HAYS SPECIALIST RECRUITMENT LTD,,Large,,5106249258,HR Recruitment Coordinator Resource,NW1 2AF,616.50,
MHCLG,PINS,18/07/2019,Agency Staff,Inspector Development & Support Team,REED SPECIALIST RECRUITMENT LTD,,Large,,5106248831,Agency EO IDST,SW20 0BA,785.50,
MHCLG,PINS,18/07/2019,Agency Staff,Inspector Development & Support Team,REED SPECIALIST RECRUITMENT LTD,,Large,,5106248835,Agency EO IDST,SW20 0BA,769.02,
MHCLG,PINS,18/07/2019,Agency Staff,Inspector Development & Support Team,REED SPECIALIST RECRUITMENT LTD,,Large,,5106248846,Temp staff for IDST-SC,SW20 0BA,418.49,
MHCLG,PINS,18/07/2019,Agency Staff,Inspector Development & Support Team,REED SPECIALIST RECRUITMENT LTD,,Large,,5106249073,Agency EO IDST,SW20 0BA,778.25,
MHCLG,PINS,18/07/2019,Agency Staff,"Finance, Commercial & Performance",REED SPECIALIST RECRUITMENT LTD,,Large,,5106249181,AO Commercial Assistant,SW20 0BA,562.99,
MHCLG,PINS,18/07/2019,Agency Staff,"Finance, Commercial & Performance",REED SPECIALIST RECRUITMENT LTD,,Large,,5106249182,Commercial AO (LB),SW20 0BA,435.94,
MHCLG,PINS,18/07/2019,Agency Staff,"Finance, Commercial & Performance",REED SPECIALIST RECRUITMENT LTD,,Large,,5106249183,AA Storekeeper,SW20 0BA,371.10,
MHCLG,PINS,18/07/2019,Agency Staff,Inspector Development & Support Team,REED SPECIALIST RECRUITMENT LTD,,Large,,5106249184,Temp staff for IDST-SC,SW20 0BA,576.41,
MHCLG,PINS,18/07/2019,NSI Fees & Expenses,NSI Fees Planning,ANTHONY THOMPSON,,Micro,,5106249141,NSI Fees,SM2 5HS,"1,400.00",
MHCLG,PINS,18/07/2019,NSI Fees & Expenses,NSI Expenses Planning,ANTHONY THOMPSON,,Micro,,5106249141,NSI Expenses,SM2 5HS,83.25,
MHCLG,PINS,18/07/2019,NSI Fees & Expenses,NSI Fees Planning,FITZSIMON PLANNING & DEVELOPMENT,,Micro,,5106249180,NSI Fees,CH7 5NL,"1,950.00",
MHCLG,PINS,18/07/2019,NSI Fees & Expenses,NSI Fees Planning,JDA DEVELOPMENT & PLANNING SERVICE,,Micro,,5106249185,NSI Fees,TA14 6PT,"1,400.00",
MHCLG,PINS,18/07/2019,NSI Fees & Expenses,NSI Expenses Planning,JDA DEVELOPMENT & PLANNING SERVICE,,Micro,,5106249185,NSI Expenses,TA14 6PT,377.94,
MHCLG,PINS,18/07/2019,NSI Fees & Expenses,NSI Fees Planning,TERRENCE KEMMANN-LANE,,Data Not Provided,,5106249179,NSI Fees,IP10 0ET,"1,875.00",
MHCLG,PINS,18/07/2019,NSI Fees & Expenses,NSI Expenses Planning,TERRENCE KEMMANN-LANE,,Data Not Provided,,5106249179,NSI Expenses,IP10 0ET,109.95,
MHCLG,PINS,19/07/2019,Agency Staff,Human Resources,HAYS SPECIALIST RECRUITMENT LTD,,Large,,5106249254,HR BP,NW1 2AF,"5,075.22",
MHCLG,PINS,19/07/2019,Agency Staff,"Finance, Commercial & Performance",REED SPECIALIST RECRUITMENT LTD,,Large,,5106249261,EO Finance GT,SW20 0BA,883.43,
MHCLG,PINS,19/07/2019,Communication Telecom Costs,ICT Digital Services,VODAFONE LTD FORMELY CABLE  & WIREL,,Large,,5106249200,Add DKM TXT records on to public DNS,MK3 5JP,"1,674.00",
MHCLG,PINS,19/07/2019,EXP � PURCHASE OF GOODS /SERVICES R & D,Research and Development,HAYS SPECIALIST RECRUITMENT LTD,,Large,,5106249206,Agile Delivery Manager,NW1 2AF,"1,698.91",
MHCLG,PINS,19/07/2019,EXP � PURCHASE OF GOODS /SERVICES R & D,Research and Development,HAYS SPECIALIST RECRUITMENT LTD,,Large,,5106249208,Test Manager ODT,NW1 2AF,"1,834.81",
MHCLG,PINS,19/07/2019,NSI Fees & Expenses,NSI Fees Planning,ANDREW BOUGHTON LTD,,Micro,,2100073785,NSI Fees,WR13 6QP,"-1,625.00",
MHCLG,PINS,19/07/2019,NSI Fees & Expenses,NSI Expenses Planning,ANDREW BOUGHTON LTD,,Micro,,2100073785,NSI Expenses,WR13 6QP,-98.10,
MHCLG,PINS,19/07/2019,NSI Fees & Expenses,NSI Fees Planning,ANDREW BOUGHTON LTD,,Micro,,5106249257,NSI Fees,WR13 6QP,"1,625.00",
MHCLG,PINS,19/07/2019,NSI Fees & Expenses,NSI Expenses Planning,ANDREW BOUGHTON LTD,,Micro,,5106249257,NSI Expenses,WR13 6QP,98.10,
MHCLG,PINS,19/07/2019,NSI Fees & Expenses,NSI Fees Planning,COLEBOURNE CONSTRUCTION LTD,,Micro,,5106249260,NSI Fees,DE22 2GF,"1,680.00",
MHCLG,PINS,19/07/2019,NSI Fees & Expenses,NSI Expenses Planning,COLEBOURNE CONSTRUCTION LTD,,Micro,,5106249260,NSI Expenses,DE22 2GF,101.70,
MHCLG,PINS,19/07/2019,NSI Fees & Expenses,NSI Fees Planning,SANDRA WHITEHEAD,,Micro,,5106249217,NSI Fees,PL14 4SR,"1,400.00",
MHCLG,PINS,19/07/2019,NSI Fees & Expenses,NSI Expenses Planning,SANDRA WHITEHEAD,,Micro,,5106249217,NSI Expenses,PL14 4SR,59.10,
MHCLG,PINS,19/07/2019,Specialist Technical Support,ICT Digital Services,HAYS SPECIALIST RECRUITMENT LTD,,Large,,5106249209,O365 specialist,NW1 2AF,"2,494.32",
MHCLG,PINS,19/07/2019,Specialist Technical Support,TR Transformation,HAYS SPECIALIST RECRUITMENT LTD,,Large,,5106249211,ODT Training Manager,NW1 2AF,"3,176.94",
MHCLG,PINS,19/07/2019,Specialist Technical Support,ICT Digital Services,REED SPECIALIST RECRUITMENT LTD,,Large,,5106249077,Contract Extension EM,SW20 0BA,"1,012.06",
MHCLG,PINS,22/07/2019,Agency Staff,Human Resources,HAYS SPECIALIST RECRUITMENT LTD,,Large,,5106249269,HR Advisor - GM,NW1 2AF,513.75,
MHCLG,PINS,22/07/2019,Agency Staff,Transformation Prog Management Office,REED SPECIALIST RECRUITMENT LTD,,Large,,5106249074,Finance Business Partner,SW20 0BA,"1,429.68",
MHCLG,PINS,22/07/2019,Agency Staff,"Finance, Commercial & Performance",REED SPECIALIST RECRUITMENT LTD,,Large,,5106249128,EO for Finance ext,SW20 0BA,540.54,
MHCLG,PINS,22/07/2019,Courier Services,Estates,ROYAL MAIL,,Large,,5106249293,Postal services VAT 19/20,S49 1HQ,"2,132.65",
MHCLG,PINS,22/07/2019,Courier Services,Estates,ROYAL MAIL,,Large,,5106249293,Postal services VAT exempt 19/20,S49 1HQ,9.00,
MHCLG,PINS,22/07/2019,Courier Services,Estates,ROYAL MAIL,,Large,,5106249293,Postal services VAT zero 19/20,S49 1HQ,30.80,
MHCLG,PINS,22/07/2019,NSI Fees & Expenses,NSI Fees Planning,ANDREW BOUGHTON LTD,,Micro,,5106249294,NSI Fees,WR13 6QP,"1,700.00",
MHCLG,PINS,22/07/2019,NSI Fees & Expenses,NSI Expenses Planning,ANDREW BOUGHTON LTD,,Micro,,5106249294,NSI Expenses,WR13 6QP,9.90,
MHCLG,PINS,22/07/2019,NSI Fees & Expenses,NSI Fees Planning,EGGLETON PLANNING AND DESIGN,,Micro,,5106249215,NSI Fees,HG4 2PZ,"2,040.00",
MHCLG,PINS,22/07/2019,NSI Fees & Expenses,NSI Expenses Planning,EGGLETON PLANNING AND DESIGN,,Micro,,5106249215,NSI Expenses,HG4 2PZ,78.48,
MHCLG,PINS,22/07/2019,NSI Fees & Expenses,NSI Fees Planning,ERIMAX LTD,,Data Not Provided,,5106249311,NSI Fees,WA15 9LH,"4,590.00",
MHCLG,PINS,22/07/2019,NSI Fees & Expenses,NSI Expenses Planning,ERIMAX LTD,,Data Not Provided,,5106249311,NSI Expenses,WA15 9LH,54.36,
MHCLG,PINS,22/07/2019,NSI Fees & Expenses,NSI Fees Planning,G E PLANNING,,Small,,5106249107,NSI Fees,RG24 8SA,"1,400.00",
MHCLG,PINS,22/07/2019,NSI Fees & Expenses,NSI Expenses Planning,G E PLANNING,,Small,,5106249107,NSI Expenses,RG24 8SA,61.65,
MHCLG,PINS,22/07/2019,NSI Fees & Expenses,NSI Fees Planning,G E PLANNING,,Small,,5106249115,NSI Fees,RG24 8SA,"1,700.00",
MHCLG,PINS,22/07/2019,NSI Fees & Expenses,NSI Expenses Planning,G E PLANNING,,Small,,5106249115,NSI Expenses,RG24 8SA,70.40,
MHCLG,PINS,22/07/2019,NSI Fees & Expenses,NSI Fees Planning,G E PLANNING,,Small,,5106249117,NSI Fees,RG24 8SA,"1,875.00",
MHCLG,PINS,22/07/2019,NSI Fees & Expenses,NSI Expenses Planning,G E PLANNING,,Small,,5106249117,NSI Expenses,RG24 8SA,70.36,
MHCLG,PINS,22/07/2019,NSI Fees & Expenses,NSI Fees Planning,JAMES EVANS,,Small,,5106249295,NSI Fees,TR16 5TH,"1,950.00",
MHCLG,PINS,22/07/2019,NSI Fees & Expenses,NSI Expenses Planning,JAMES EVANS,,Small,,5106249295,NSI Expenses,TR16 5TH,350.90,
MHCLG,PINS,22/07/2019,NSI Fees & Expenses,NSI Fees Planning,JAMES EVANS,,Small,,5106249310,NSI Fees,TR16 5TH,"1,400.00",
MHCLG,PINS,22/07/2019,NSI Fees & Expenses,NSI Expenses Planning,JAMES EVANS,,Small,,5106249310,NSI Expenses,TR16 5TH,608.10,
MHCLG,PINS,22/07/2019,NSI Fees & Expenses,NSI Fees Planning,JOHN WHALLEY,,Micro,,5106249312,NSI Fees,LL54 5BS,"2,940.00",
MHCLG,PINS,22/07/2019,NSI Fees & Expenses,NSI Expenses Planning,JOHN WHALLEY,,Micro,,5106249312,NSI Expenses,LL54 5BS,686.62,
MHCLG,PINS,22/07/2019,NSI Fees & Expenses,NSI Fees Planning,KIM BENNETT PLANNING SERVICES,,Micro,,5106249291,NSI Fees,CT2 7ET,"1,050.00",
MHCLG,PINS,22/07/2019,NSI Fees & Expenses,NSI Expenses Planning,KIM BENNETT PLANNING SERVICES,,Micro,,5106249291,NSI Expenses,CT2 7ET,63.15,
MHCLG,PINS,22/07/2019,NSI Fees & Expenses,NSI Fees Planning,RCA REGENERATION LTD,,Small,,5106249297,NSI Fees,WR9 0QE,"1,536.00",
MHCLG,PINS,22/07/2019,NSI Fees & Expenses,NSI Expenses Planning,RCA REGENERATION LTD,,Small,,5106249297,NSI Planning,WR9 0QE,151.20,
MHCLG,PINS,22/07/2019,NSI Fees & Expenses,NSI Fees Planning,RICHARD J MAILE,,Data Not Provided,,5106249148,NSI Fees,BN11 1QG,"4,080.00",
MHCLG,PINS,22/07/2019,Office machinery consumables,Business Support,X M A LIMITED,,Data Not Provided,,5106249274,Office Machine Consumables 18-19,NG11 7EP,647.98,
MHCLG,PINS,22/07/2019,Specialist Technical Support,Corporate Services Director,HAYS SPECIALIST RECRUITMENT LTD,,Large,,5106249038,Data Protection Liaison Officer,NW1 2AF,"3,580.50",
MHCLG,PINS,22/07/2019,Steady State Service Provision,Human Resources,CABINET OFFICE,,Public Bodies,,5106249275,CS Jobs,FY5 3TA,"3,290.40",
MHCLG,PINS,23/07/2019,Agency Staff,Human Resources,HAYS SPECIALIST RECRUITMENT LTD,,Large,,5106249320,HR HEO Advkice Resource LB,NW1 2AF,"1,029.18",
MHCLG,PINS,23/07/2019,Agency Staff,Inspector Development & Support Team,REED SPECIALIST RECRUITMENT LTD,,Large,,5106249331,Temp staff for IDST-SC,SW20 0BA,647.47,
MHCLG,PINS,23/07/2019,Agency Staff,Inspector Development & Support Team,REED SPECIALIST RECRUITMENT LTD,,Large,,5106249336,Agency EO IDST,SW20 0BA,320.35,
MHCLG,PINS,23/07/2019,Agency Staff,Human Resources,REED SPECIALIST RECRUITMENT LTD,,Large,,5106249352,AO HR - DU,SW20 0BA,480.00,
MHCLG,PINS,23/07/2019,Agency Staff,Human Resources,REED SPECIALIST RECRUITMENT LTD,,Large,,5106249357,AO HR - LK,SW20 0BA,579.84,
MHCLG,PINS,23/07/2019,Agency Staff,"Finance, Commercial & Performance",REED SPECIALIST RECRUITMENT LTD,,Large,,5106249395,AO Commercial Assistant,SW20 0BA,562.99,
MHCLG,PINS,23/07/2019,Agency Staff,"Finance, Commercial & Performance",REED SPECIALIST RECRUITMENT LTD,,Large,,5106249396,AA Storekeeper,SW20 0BA,371.10,
MHCLG,PINS,23/07/2019,EXP � PURCHASE OF GOODS /SERVICES R & D,Research and Development,METHODS BUSINESS AND DIGITAL TECH,,Medium,,5106249212,Contract Extension,EC1A 4EN,"22,800.00",
MHCLG,PINS,23/07/2019,IT - Service Contracts,ICT Digital Services,X M A LTD,,Data Not Provided,,5106249372,Banked level 3 engineer,NG11 7EP,"3,600.00",
MHCLG,PINS,23/07/2019,IT - Service Contracts,ICT Digital Services,X M A LTD,,Data Not Provided,,5106249372,Unlimited annual support,NG11 7EP,"2,800.00",
MHCLG,PINS,23/07/2019,Mobile phone costs,ICT Digital Services,GAMMA TELECOM LTD,,Large,,5106249339,Miscellaneous VAT zero rated items,EC4M 7RD,"2,699.06",
MHCLG,PINS,23/07/2019,Mobile phone costs,ICT Digital Services,GAMMA TELECOM LTD,,Large,,5106249339,Mobile telephony services 2018-19,EC4M 7RD,"6,917.93",
MHCLG,PINS,23/07/2019,NSI Fees & Expenses,NSI Fees Planning,ANDREW BOUGHTON LTD,,Micro,,5106249328,NSI Fees,WR13 6QP,"1,625.00",
MHCLG,PINS,23/07/2019,NSI Fees & Expenses,NSI Expenses Planning,ANDREW BOUGHTON LTD,,Micro,,5106249328,NSI Expenses,WR13 6QP,95.85,
MHCLG,PINS,23/07/2019,NSI Fees & Expenses,NSI Fees Planning,ANTHONY THOMPSON,,Micro,,5106248104,NSI Fees,SM2 5HS,"1,400.00",
MHCLG,PINS,23/07/2019,NSI Fees & Expenses,NSI Expenses Planning,ANTHONY THOMPSON,,Micro,,5106248104,NSI Expenses,SM2 5HS,9.45,
MHCLG,PINS,23/07/2019,NSI Fees & Expenses,NSI Fees Planning,CHEC PLANNING LTD,,Micro,,5106248105,NSI Fees,CB6 3PG,"2,100.00",
MHCLG,PINS,23/07/2019,NSI Fees & Expenses,NSI Expenses Planning,CHEC PLANNING LTD,,Micro,,5106248105,NSI Expenses,CB6 3PG,138.06,
MHCLG,PINS,23/07/2019,NSI Fees & Expenses,NSI Fees Planning,ELDNAR LTD,,Micro,,5106249256,NSI Fees,WR6 6QD,850.00,
MHCLG,PINS,23/07/2019,NSI Fees & Expenses,NSI Expenses Planning,ELDNAR LTD,,Micro,,5106249256,NSI Expenses,WR6 6QD,82.19,
MHCLG,PINS,23/07/2019,NSI Fees & Expenses,NSI Fees Planning,GREENWOOD PLANNING,,Data Not Provided,,5106249371,NSI Fees,WR10 3HA,"3,150.00",
MHCLG,PINS,23/07/2019,NSI Fees & Expenses,NSI Expenses Planning,GREENWOOD PLANNING,,Data Not Provided,,5106249371,NSI Expenses,WR10 3HA,105.20,
MHCLG,PINS,23/07/2019,NSI Fees & Expenses,NSI Fees Planning,MR G POWYS JONES,,Data Not Provided,,5106249369,NSI Fees,CF14 1QB,"1,750.00",
MHCLG,PINS,23/07/2019,NSI Fees & Expenses,NSI Expenses Planning,MR G POWYS JONES,,Data Not Provided,,5106249369,NSI Expenses,CF14 1QB,269.40,
MHCLG,PINS,23/07/2019,NSI Fees & Expenses,NSI Fees Planning,MR MICHAEL EVANS,,Data Not Provided,,5106249377,NSI Fees,RG40 5YR,"1,400.00",
MHCLG,PINS,23/07/2019,NSI Fees & Expenses,NSI Expenses Planning,MR MICHAEL EVANS,,Data Not Provided,,5106249377,NSI Expenses,RG40 5YR,92.70,
MHCLG,PINS,23/07/2019,NSI Fees & Expenses,NSI Fees Planning,MR MICHAEL EVANS,,Data Not Provided,,5106249378,NSI Fees,RG40 5YR,"1,400.00",
MHCLG,PINS,23/07/2019,NSI Fees & Expenses,NSI Expenses Planning,MR MICHAEL EVANS,,Data Not Provided,,5106249378,NSI Expenses,RG40 5YR,45.90,
MHCLG,PINS,23/07/2019,NSI Fees & Expenses,NSI Fees Planning,VICTOR CALLISTER,,Small,,5106249370,NSI Fees,E1 1LQ,"1,700.00",
MHCLG,PINS,23/07/2019,NSI Fees & Expenses,NSI Expenses Planning,VICTOR CALLISTER,,Small,,5106249370,NSI Expenses,E1 1LQ,265.49,
MHCLG,PINS,23/07/2019,Specialist Technical Support,"Finance, Commercial & Performance",ALLEN LANE LTD,,Medium,,5106249147,2019 Extension,SW1Y 6RJ,"6,855.36",
MHCLG,PINS,23/07/2019,Specialist Technical Support,Corporate Services Director,HAYS SPECIALIST RECRUITMENT LTD,,Large,,5106249205,Data Protection Liaison Officer,NW1 2AF,"3,580.50",
MHCLG,PINS,23/07/2019,Specialist Technical Support,Performance Recovery,HAYS SPECIALIST RECRUITMENT LTD,,Large,,5106249207,Business Intelligence Developer,NW1 2AF,"1,698.19",
MHCLG,PINS,23/07/2019,Specialist Technical Support,ICT Digital Services,HAYS SPECIALIST RECRUITMENT LTD,,Large,,5106249203,ITMP PDM,NW1 2AF,"4,660.50",
MHCLG,PINS,23/07/2019,Specialist Technical Support,ICT Digital Services,REED SPECIALIST RECRUITMENT LTD,,Large,,5106249326,Contract ext EM,SW20 0BA,"1,012.06",
MHCLG,PINS,24/07/2019,Agency Staff,Transformation Prog Management Office,REED SPECIALIST RECRUITMENT LTD,,Large,,5106249322,Finance Business Partner,SW20 0BA,"1,159.20",
MHCLG,PINS,24/07/2019,Agency Staff,"Policy, Knowledge & Quality",REED SPECIALIST RECRUITMENT LTD,,Large,,5106249405,Agency Staff for Livrary 19-20,SW20 0BA,604.73,
MHCLG,PINS,24/07/2019,Legal Fees,Wales Director,GOVERNMENT LEGAL DEPT,,Public Bodies,,5106249399,Legal Fees 2019,WC2B 4TS,937.20,
MHCLG,PINS,24/07/2019,NSI Fees & Expenses,NSI Fees Planning,ARGYLE PLANNING CONSULTANCY LTD,,Data Not Provided,,5106249393,NSI Fees,NE66 1AJ,"1,700.00",
MHCLG,PINS,24/07/2019,NSI Fees & Expenses,NSI Expenses Planning,ARGYLE PLANNING CONSULTANCY LTD,,Data Not Provided,,5106249393,NSI Expenses,NE66 1AJ,124.20,
MHCLG,PINS,24/07/2019,NSI Fees & Expenses,NSI Fees Planning,ARGYLE PLANNING CONSULTANCY LTD,,Data Not Provided,,5106249409,NSI Fees,NE66 1AJ,"1,700.00",
MHCLG,PINS,24/07/2019,NSI Fees & Expenses,NSI Expenses Planning,ARGYLE PLANNING CONSULTANCY LTD,,Data Not Provided,,5106249409,NSI Expenses,NE66 1AJ,116.50,
MHCLG,PINS,24/07/2019,NSI Fees & Expenses,NSI Fees Planning,ARGYLE PLANNING CONSULTANCY LTD,,Data Not Provided,,5106249424,NSI Fees,NE66 1AJ,"1,700.00",
MHCLG,PINS,24/07/2019,NSI Fees & Expenses,NSI Expenses Planning,ARGYLE PLANNING CONSULTANCY LTD,,Data Not Provided,,5106249424,NSI Expenses,NE66 1AJ,130.64,
MHCLG,PINS,24/07/2019,NSI Fees & Expenses,NSI Fees Planning,ARGYLE PLANNING CONSULTANCY LTD,,Data Not Provided,,5106249429,NSI Fees,NE66 1AJ,"1,700.00",
MHCLG,PINS,24/07/2019,NSI Fees & Expenses,NSI Expenses Planning,ARGYLE PLANNING CONSULTANCY LTD,,Data Not Provided,,5106249429,NSI Expenses,NE66 1AJ,76.20,
MHCLG,PINS,24/07/2019,NSI Fees & Expenses,NSI Fees Planning,ARGYLE PLANNING CONSULTANCY LTD,,Data Not Provided,,5106249431,NSI Fees,NE66 1AJ,"1,700.00",
MHCLG,PINS,24/07/2019,NSI Fees & Expenses,NSI Expenses Planning,ARGYLE PLANNING CONSULTANCY LTD,,Data Not Provided,,5106249431,NSI Expenses,NE66 1AJ,50.60,
MHCLG,PINS,24/07/2019,NSI Fees & Expenses,NSI Fees Planning,COUPER PLANNING SERVICES LTD,,Micro,,5106249475,NSI Fees,WR5 2AG,"-2,040.00",
MHCLG,PINS,24/07/2019,NSI Fees & Expenses,NSI Expenses Planning,COUPER PLANNING SERVICES LTD,,Micro,,5106249475,NSI Expenses,WR5 2AG,-240.66,
MHCLG,PINS,24/07/2019,NSI Fees & Expenses,NSI Fees Planning,G R PLANNING CONSULTANCY LTD,,Small,,5106249410,NSI Fees,TQ6 9RG,"1,740.00",
MHCLG,PINS,24/07/2019,NSI Fees & Expenses,NSI Expenses Planning,G R PLANNING CONSULTANCY LTD,,Small,,5106249410,NSI Expenses,TQ6 9RG,135.72,
MHCLG,PINS,24/07/2019,NSI Fees & Expenses,NSI Fees Planning,KAREN WINNARD,,Data Not Provided,,5106249432,NSI Fees,S36 6HT,"1,200.00",
MHCLG,PINS,24/07/2019,NSI Fees & Expenses,NSI Expenses Planning,KAREN WINNARD,,Data Not Provided,,5106249432,NSI Expenses,S36 6HT,299.06,
MHCLG,PINS,24/07/2019,NSI Fees & Expenses,NSI Fees Planning,RACHAEL BARTLETT,,Small,,5106249413,NSI Fees,DN14 6JU,"1,750.00",
MHCLG,PINS,24/07/2019,NSI Fees & Expenses,NSI Expenses Planning,RACHAEL BARTLETT,,Small,,5106249413,NSI Expenses,DN14 6JU,63.44,
MHCLG,PINS,24/07/2019,NSI Fees & Expenses,NSI Fees Planning,RICHMOND PLANNING AND MARKETING LTD,,Small,,5106249411,NSI Fees,B45 8HX,"1,400.00",
MHCLG,PINS,24/07/2019,NSI Fees & Expenses,NSI Expenses Planning,RICHMOND PLANNING AND MARKETING LTD,,Small,,5106249411,NSI Expenses,B45 8HX,80.88,
MHCLG,PINS,24/07/2019,Office machinery consumables,Business Support,X M A LIMITED,,Data Not Provided,,5106249414,Office machine consumables 19/20,NG11 7EP,"2,684.40",
MHCLG,PINS,24/07/2019,Office machinery consumables,Business Support,X M A LIMITED,,Data Not Provided,,5106249415,Office machine consumables 19/20,NG11 7EP,623.33,
MHCLG,PINS,25/07/2019,Agency Staff,"Finance, Commercial & Performance",REED SPECIALIST RECRUITMENT LTD,,Large,,5106249327,Commercial AO (ADD),SW20 0BA,609.30,
MHCLG,PINS,25/07/2019,Agency Staff,"Finance, Commercial & Performance",REED SPECIALIST RECRUITMENT LTD,,Large,,5106249482,Commercial AO (LB),SW20 0BA,609.30,
MHCLG,PINS,25/07/2019,Courier Services,Estates,PARCELFORCE WORLDWIDE,,Large,,5106249485,Courier service,MK7 8LE,"8,514.29",
MHCLG,PINS,25/07/2019,Courier Services,Estates,ROYAL MAIL,,Large,,5106249478,Postal services VAT 19/20,S49 1HQ,"1,556.11",
MHCLG,PINS,25/07/2019,EXP � PURCHASE OF GOODS /SERVICES R & D,Research and Development,GOPRO CONSULTING LTD,,Small,,5106249507,V4 - Beta Sprints 3-10,WC1N 2EB,"74,535.00",
MHCLG,PINS,25/07/2019,EXP � PURCHASE OF GOODS /SERVICES R & D,Research and Development,HAYS SPECIALIST RECRUITMENT LTD,,Large,,5106249486,Agile Delivery Manager,NW1 2AF,"1,698.91",
MHCLG,PINS,25/07/2019,EXP � PURCHASE OF GOODS /SERVICES R & D,Research and Development,HAYS SPECIALIST RECRUITMENT LTD,,Large,,5106249491,Test Manager ODT,NW1 2AF,"2,446.42",
MHCLG,PINS,25/07/2019,IT Hire,TR Transformation,GOPRO CONSULTING LTD,,Small,,5106249507,V4 - Portal Development,WC1N 2EB,"9,502.00",
MHCLG,PINS,25/07/2019,Legal Fees,"Policy, Knowledge & Quality",GOVERNMENT LEGAL DEPT,,Public Bodies,,2100074022,Disbursements,WC2B 4TS,"-55,765.66",
MHCLG,PINS,25/07/2019,Legal Fees,"Policy, Knowledge & Quality",GOVERNMENT LEGAL DEPT,,Public Bodies,,2100074022,Fees and Charges,WC2B 4TS,"-73,773.48",
MHCLG,PINS,25/07/2019,Legal Fees,"Policy, Knowledge & Quality",GOVERNMENT LEGAL DEPT,,Public Bodies,,5106249496,Disbursements,WC2B 4TS,"55,765.66",
MHCLG,PINS,25/07/2019,Legal Fees,"Policy, Knowledge & Quality",GOVERNMENT LEGAL DEPT,,Public Bodies,,5106249496,Fees and Charges,WC2B 4TS,"73,773.48",
MHCLG,PINS,25/07/2019,Mobile phone costs,ICT Digital Services,DAISY COMMUNICATIONS LIMITED,,Large,,5106249468,Mobile voice & data services,BB9 5SR,"1,429.82",
MHCLG,PINS,25/07/2019,NSI Fees & Expenses,NSI Fees Planning,CAMBRIDGE PLANNING SERVICES,,Data Not Provided,,5106249470,NSI Fees,CB3 0HS,"2,125.00",
MHCLG,PINS,25/07/2019,NSI Fees & Expenses,NSI Expenses Planning,CAMBRIDGE PLANNING SERVICES,,Data Not Provided,,5106249470,NSI Expenses,CB3 0HS,78.75,
MHCLG,PINS,25/07/2019,NSI Fees & Expenses,NSI Fees Planning,CLIFFORD W & R C SHRIMPLIN,,Data Not Provided,,5106248107,NSI Fees,LU1 1PP,"1,680.00",
MHCLG,PINS,25/07/2019,NSI Fees & Expenses,NSI Expenses Planning,CLIFFORD W & R C SHRIMPLIN,,Data Not Provided,,5106248107,NSI Expenses,LU1 1PP,86.04,
MHCLG,PINS,25/07/2019,NSI Fees & Expenses,NSI Fees Planning,CLIFFORD W & R C SHRIMPLIN,,Data Not Provided,,5106248108,NSI Fees,LU1 1PP,"1,680.00",
MHCLG,PINS,25/07/2019,NSI Fees & Expenses,NSI Expenses Planning,CLIFFORD W & R C SHRIMPLIN,,Data Not Provided,,5106248108,NSI Expenses,LU1 1PP,97.74,
MHCLG,PINS,25/07/2019,NSI Fees & Expenses,NSI Fees Planning,CLIFFORD W & R C SHRIMPLIN,,Data Not Provided,,5106248109,NSI Fees,LU1 1PP,"1,260.00",
MHCLG,PINS,25/07/2019,NSI Fees & Expenses,NSI Expenses Planning,CLIFFORD W & R C SHRIMPLIN,,Data Not Provided,,5106248109,NSI Expenses,LU1 1PP,40.68,
MHCLG,PINS,25/07/2019,NSI Fees & Expenses,NSI Fees Planning,CLIFFORD W & R C SHRIMPLIN,,Data Not Provided,,5106249479,NSI Fees,LU1 1PP,"1,680.00",
MHCLG,PINS,25/07/2019,NSI Fees & Expenses,NSI Expenses Planning,CLIFFORD W & R C SHRIMPLIN,,Data Not Provided,,5106249479,NSI Expenses,LU1 1PP,110.88,
MHCLG,PINS,25/07/2019,NSI Fees & Expenses,NSI Fees Planning,CLIFFORD W & R C SHRIMPLIN,,Data Not Provided,,5106249480,NSI Fees,LU1 1PP,"1,680.00",
MHCLG,PINS,25/07/2019,NSI Fees & Expenses,NSI Expenses Planning,CLIFFORD W & R C SHRIMPLIN,,Data Not Provided,,5106249480,NSI Expenses,LU1 1PP,83.88,
MHCLG,PINS,25/07/2019,NSI Fees & Expenses,NSI Fees Planning,CLIFFORD W & R C SHRIMPLIN,,Data Not Provided,,5106249481,NSI Fees,LU1 1PP,"1,680.00",
MHCLG,PINS,25/07/2019,NSI Fees & Expenses,NSI Expenses Planning,CLIFFORD W & R C SHRIMPLIN,,Data Not Provided,,5106249481,NSI Expenses,LU1 1PP,149.56,
MHCLG,PINS,25/07/2019,NSI Fees & Expenses,NSI Fees Planning,COUPER PLANNING SERVICES LTD,,Micro,,5106249471,NSI Fees,WR5 2AG,510.00,
MHCLG,PINS,25/07/2019,NSI Fees & Expenses,NSI Fees Planning,JS CONSERVATION MANAGEMENT &,,Small,,5106249465,NSI Fees,LS27 0BD,"2,610.00",
MHCLG,PINS,25/07/2019,NSI Fees & Expenses,NSI Expenses Planning,JS CONSERVATION MANAGEMENT &,,Small,,5106249465,NSI Expenses,LS27 0BD,274.65,
MHCLG,PINS,25/07/2019,NSI Fees & Expenses,NSI Fees Planning,MARTIN ANDREWS PLANNING CONSULTANCY,,Micro,,5106249499,NSI Fees,BH15 1HH,630.00,
MHCLG,PINS,25/07/2019,NSI Fees & Expenses,NSI Fees Planning,PETER SEDGWICK PLANNING,,Small,,2100074024,NSI Fees,SA61 2SJ,"-1,550.00",
MHCLG,PINS,25/07/2019,NSI Fees & Expenses,NSI Expenses Planning,PETER SEDGWICK PLANNING,,Small,,2100074024,NSI Expenses,SA61 2SJ,-551.00,
MHCLG,PINS,25/07/2019,NSI Fees & Expenses,NSI Fees Planning,PETER SEDGWICK PLANNING,,Small,,5106248110,NSI Fees,SA61 2SJ,"1,550.00",
MHCLG,PINS,25/07/2019,NSI Fees & Expenses,NSI Expenses Planning,PETER SEDGWICK PLANNING,,Small,,5106248110,NSI Expenses,SA61 2SJ,551.00,
MHCLG,PINS,25/07/2019,NSI Fees & Expenses,NSI Fees Planning,RACHAEL BARTLETT,,Small,,5106249324,NSI Fees,DN14 6JU,"1,400.00",
MHCLG,PINS,25/07/2019,NSI Fees & Expenses,NSI Expenses Planning,RACHAEL BARTLETT,,Small,,5106249324,NSI Expenses,DN14 6JU,126.40,
MHCLG,PINS,25/07/2019,Software Licences,TR Transformation,GOPRO CONSULTING LTD,,Small,,5106249467,V4 - ACMYr1,WC1N 2EB,"17,985.00",
MHCLG,PINS,25/07/2019,Software Licences,TR Transformation,GOPRO CONSULTING LTD,,Small,,5106249467,V4 - SelfService Portal Yr1,WC1N 2EB,"28,800.00",
MHCLG,PINS,25/07/2019,Software Licences,TR Transformation,GOPRO CONSULTING LTD,,Small,,5106249507,V4 - Hosting Yr1,WC1N 2EB,"1,154.00",
MHCLG,PINS,25/07/2019,Specialist Technical Support,"Finance, Commercial & Performance",ALLEN LANE LTD,,Medium,,5106249456,2019 Extension,SW1Y 6RJ,"3,427.68",
MHCLG,PINS,25/07/2019,Specialist Technical Support,TR Transformation,HAYS SPECIALIST RECRUITMENT LTD,,Large,,5106249488,ODT Training Manager,NW1 2AF,"3,176.94",
MHCLG,PINS,25/07/2019,Specialist Technical Support,ICT Digital Services,HAYS SPECIALIST RECRUITMENT LTD,,Large,,5106249489,O365 specialist,NW1 2AF,"2,494.32",
MHCLG,PINS,25/07/2019,Vehicle hire,Business Support,ENTERPRISE RENT-A-CAR,,Large,,5106249454,Vehicle Hire EB,TW20 9FB,645.76,
MHCLG,PINS,26/07/2019,Agency Staff,Human Resources,HAYS SPECIALIST RECRUITMENT LTD,,Large,,5106249514,HR Advisor - GM,NW1 2AF,513.75,
MHCLG,PINS,26/07/2019,Legal Fees,"Policy, Knowledge & Quality",GOVERNMENT LEGAL DEPT,,Public Bodies,,5106249501,Disbursements,WC2B 4TS,"55,765.66",
MHCLG,PINS,26/07/2019,Legal Fees,"Policy, Knowledge & Quality",GOVERNMENT LEGAL DEPT,,Public Bodies,,5106249501,Fees and Charges,WC2B 4TS,"73,773.48",
MHCLG,PINS,26/07/2019,NSI Fees & Expenses,NSI Fees Planning,DAVIS PLANNING LIMITED,,Small,,5106249563,NSI Fees,RG41 3HL,"1,680.00",
MHCLG,PINS,26/07/2019,NSI Fees & Expenses,NSI Expenses Planning,DAVIS PLANNING LIMITED,,Small,,5106249563,NSI Expenses,RG41 3HL,112.32,
MHCLG,PINS,26/07/2019,NSI Fees & Expenses,NSI Fees Planning,DESIGN 2,,Micro,,5106249516,NSI Fees,PO20 0HX,"1,680.00",
MHCLG,PINS,26/07/2019,NSI Fees & Expenses,NSI Expenses Planning,DESIGN 2,,Micro,,5106249516,NSI Expenses,PO20 0HX,111.68,
MHCLG,PINS,26/07/2019,NSI Fees & Expenses,NSI Fees Planning,EGGLETON PLANNING AND DESIGN,,Micro,,5106249392,NSI Fees,HG4 2PZ,"2,190.00",
MHCLG,PINS,26/07/2019,NSI Fees & Expenses,NSI Expenses Planning,EGGLETON PLANNING AND DESIGN,,Micro,,5106249392,NSI Expenses,HG4 2PZ,423.44,
MHCLG,PINS,26/07/2019,NSI Fees & Expenses,NSI Fees Planning,ELDNAR LTD,,Micro,,5106249449,NSI Fees,WR6 6QD,850.00,
MHCLG,PINS,26/07/2019,NSI Fees & Expenses,NSI Fees Planning,ELDNAR LTD,,Micro,,5106249502,NSI Fees,WR6 6QD,"1,275.00",
MHCLG,PINS,26/07/2019,NSI Fees & Expenses,NSI Expenses Planning,ELDNAR LTD,,Micro,,5106249502,NSI Expenses,WR6 6QD,134.85,
MHCLG,PINS,26/07/2019,NSI Fees & Expenses,NSI Fees Planning,JAN HEBBLETHWAITE,,Micro,,5106249493,NSI Fees,ST17 0SA,"1,700.00",
MHCLG,PINS,26/07/2019,NSI Fees & Expenses,NSI Expenses Planning,JAN HEBBLETHWAITE,,Micro,,5106249493,NSI Expenses,ST17 0SA,162.15,
MHCLG,PINS,26/07/2019,NSI Fees & Expenses,NSI Fees Planning,MARTIN ANDREWS PLANNING CONSULTANCY,,Micro,,5106249559,NSI Fees,BH15 1HH,"2,040.00",
MHCLG,PINS,26/07/2019,NSI Fees & Expenses,NSI Expenses Planning,MARTIN ANDREWS PLANNING CONSULTANCY,,Micro,,5106249559,NSI Expenses,BH15 1HH,37.44,
MHCLG,PINS,26/07/2019,Printing,Business Support,CORPORATE DOCUMENT SERVICES LTD,,Data Not Provided,,5106249558,printed stationery   file covers,LS2 7LY,798.60,
MHCLG,PINS,26/07/2019,Specialist Technical Support,ICT Digital Services,HAYS SPECIALIST RECRUITMENT LTD,,Large,,5106249487,ITMP PDM,NW1 2AF,"3,728.40",
MHCLG,PINS,26/07/2019,Training,Governance & Strategic Support,ASSOCIATION OF CHIEF EXECUTIVE,,Micro,,5106249513,Membership of Assoc of CEO,SW1Y 5AA,695.00,
MHCLG,PINS,29/07/2019,Advertising,Wales Director,TMP (UK) LIMITED,,Large,,5106249582,Statutory Advertising - Wales,W1T 7RQ,"1,855.90",
MHCLG,PINS,29/07/2019,Agency Staff,Human Resources,HAYS SPECIALIST RECRUITMENT LTD,,Large,,5106249587,HR HEO Advkice Resource LB,NW1 2AF,"1,029.18",
MHCLG,PINS,29/07/2019,Communication Telecom Costs,ICT Digital Services,BT PAYMENT SERVICE LIMITED,,Large,,5106249581,ADSL lines FY 2019-20,DH98 1BT,309.12,
MHCLG,PINS,29/07/2019,Communication Telecom Costs,ICT Digital Services,BT PAYMENT SERVICE LIMITED,,Large,,5106249581,OneBill Plus charges,DH98 1BT,40.00,
MHCLG,PINS,29/07/2019,EXP � PURCHASE OF GOODS /SERVICES R & D,Research and Development,METHODS BUSINESS AND DIGITAL TECH,,Medium,,5106249585,Digital Delivery Manager,EC1A 4EN,"3,366.75",
MHCLG,PINS,29/07/2019,IT at cost,ICT Digital Services,MHCLG,,Public Bodies,,5106249583,PINS ITMP capital implement. recharge,HP2 4XN,"908,510.20",
MHCLG,PINS,29/07/2019,NSI Fees & Expenses,NSI Fees Planning,APS APPEALS &PLANNING SERVICES,,Micro,,5106249500,NSI Fees,OL16 4SW,"1,450.00",
MHCLG,PINS,29/07/2019,NSI Fees & Expenses,NSI Expenses Planning,APS APPEALS &PLANNING SERVICES,,Micro,,5106249500,NSI Expenses,OL16 4SW,79.30,
MHCLG,PINS,29/07/2019,NSI Fees & Expenses,NSI Fees Planning,CARBROOK ASSOCIATES,,Micro,,5106249600,NSI Fees,M32 8QU,"2,125.00",
MHCLG,PINS,29/07/2019,NSI Fees & Expenses,NSI Expenses Planning,CARBROOK ASSOCIATES,,Micro,,5106249600,NSI Expenses,M32 8QU,223.20,
MHCLG,PINS,29/07/2019,NSI Fees & Expenses,NSI Fees Planning,COUPER PLANNING SERVICES LTD,,Micro,,5106249593,NSI Fees,WR5 2AG,"2,466.00",
MHCLG,PINS,29/07/2019,NSI Fees & Expenses,NSI Expenses Planning,COUPER PLANNING SERVICES LTD,,Micro,,5106249593,NSI Expenses,WR5 2AG,482.78,
MHCLG,PINS,29/07/2019,NSI Fees & Expenses,NSI Fees Planning,D C PLANNING LTD,,Data Not Provided,,5106249522,NSI Fees,BH14 8AL,"3,360.00",
MHCLG,PINS,29/07/2019,NSI Fees & Expenses,NSI Expenses Planning,D C PLANNING LTD,,Data Not Provided,,5106249522,NSI Expenses,BH14 8AL,325.04,
MHCLG,PINS,29/07/2019,NSI Fees & Expenses,NSI Expenses Planning,FITZSIMON PLANNING & DEVELOPMENT,,Micro,,5106249598,NSI Expenses,CH7 5NL,299.55,
MHCLG,PINS,29/07/2019,NSI Fees & Expenses,NSI Fees Planning,FITZSIMON PLANNING & DEVELOPMENT,,Micro,,5106249599,NSI Fees,CH7 5NL,"1,650.00",
MHCLG,PINS,29/07/2019,NSI Fees & Expenses,NSI Fees Planning,JAN HEBBLETHWAITE,,Micro,,5106249597,NSI Fees,ST17 0SA,"1,400.00",
MHCLG,PINS,29/07/2019,NSI Fees & Expenses,NSI Expenses Planning,JAN HEBBLETHWAITE,,Micro,,5106249597,NSI Expenses,ST17 0SA,65.70,
MHCLG,PINS,29/07/2019,NSI Fees & Expenses,NSI Fees Planning,PETER SEDGWICK PLANNING,,Small,,5106249573,NSI Fees,SA61 2SJ,"1,800.00",
MHCLG,PINS,29/07/2019,NSI Fees & Expenses,NSI Expenses Planning,PETER SEDGWICK PLANNING,,Small,,5106249573,NSI Expenses,SA61 2SJ,301.00,
MHCLG,PINS,29/07/2019,NSI Fees & Expenses,NSI Fees Planning,PLANNING HOUSE GROUP LIMITED,,Small,,5106249586,NSI Fees,SR8 3NR,"1,740.00",
MHCLG,PINS,29/07/2019,NSI Fees & Expenses,NSI Expenses Planning,PLANNING HOUSE GROUP LIMITED,,Small,,5106249586,NSI Expenses,SR8 3NR,230.80,
MHCLG,PINS,29/07/2019,NSI Fees & Expenses,NSI Fees Planning,PLANNING SENSE LIMITED,,Small,,5106249566,NSI Fees,AL1 5EF,"2,850.00",
MHCLG,PINS,29/07/2019,NSI Fees & Expenses,NSI Expenses Planning,PLANNING SENSE LIMITED,,Small,,5106249566,NSI Expenses,AL1 5EF,844.02,
MHCLG,PINS,29/07/2019,NSI Fees & Expenses,NSI Fees Planning,RCA REGENERATION LTD,,Small,,5106249594,NSI Fees,WR9 0QE,"1,740.00",
MHCLG,PINS,29/07/2019,NSI Fees & Expenses,NSI Expenses Planning,RCA REGENERATION LTD,,Small,,5106249594,NSI Planning,WR9 0QE,139.32,
MHCLG,PINS,29/07/2019,NSI Fees & Expenses,NSI Fees Planning,SANDRA WHITEHEAD,,Micro,,5106249601,NSI Fees,PL14 4SR,"1,650.00",
MHCLG,PINS,29/07/2019,NSI Fees & Expenses,NSI Expenses Planning,SANDRA WHITEHEAD,,Micro,,5106249601,NSI Expenses,PL14 4SR,244.79,
MHCLG,PINS,29/07/2019,NSI Fees & Expenses,NSI Fees Planning,STORRIE PLANNING,,Small,,5106249596,NSI Fees,HD1 6RX,425.00,
MHCLG,PINS,29/07/2019,NSI Fees & Expenses,NSI Expenses Planning,STORRIE PLANNING,,Small,,5106249596,NSI Expenses,HD1 6RX,69.25,
MHCLG,PINS,29/07/2019,Specialist Technical Support,Corporate Services Director,HAYS SPECIALIST RECRUITMENT LTD,,Large,,5106249495,Data Protection Liaison Officer,NW1 2AF,"3,580.50",
MHCLG,PINS,30/07/2019,Agency Staff,Inspector Development & Support Team,REED SPECIALIST RECRUITMENT LTD,,Large,,5106249612,Temp staff for IDST-SC,SW20 0BA,600.10,
MHCLG,PINS,30/07/2019,Agency Staff,"Finance, Commercial & Performance",REED SPECIALIST RECRUITMENT LTD,,Large,,5106249646,AA Storekeeper,SW20 0BA,371.10,
MHCLG,PINS,30/07/2019,Agency Staff,Transformation Prog Management Office,REED SPECIALIST RECRUITMENT LTD,,Large,,5106249647,Finance Business Partner,SW20 0BA,"1,159.20",
MHCLG,PINS,30/07/2019,Agency Staff,Inspector Development & Support Team,REED SPECIALIST RECRUITMENT LTD,,Large,,5106249648,Agency EO IDST,SW20 0BA,452.18,
MHCLG,PINS,30/07/2019,Agency Staff,"Policy, Knowledge & Quality",REED SPECIALIST RECRUITMENT LTD,,Large,,5106249649,Agency Staff for Livrary 19-20,SW20 0BA,514.84,
MHCLG,PINS,30/07/2019,Agency Staff,"Finance, Commercial & Performance",REED SPECIALIST RECRUITMENT LTD,,Large,,5106249661,AO Commercial Assistant,SW20 0BA,562.99,
MHCLG,PINS,30/07/2019,Mobile phone costs,ICT Digital Services,GAMMA TELECOM LTD,,Large,,5106249633,Mobile telephony services 2019-20,EC4M 7RD,"6,936.78",
MHCLG,PINS,30/07/2019,Mobile phone costs,ICT Digital Services,GAMMA TELECOM LTD,,Large,,5106249634,Mobile telephony services 2019-20,EC4M 7RD,"5,886.00",
MHCLG,PINS,30/07/2019,NSI Fees & Expenses,NSI Fees Planning,ANDREW DALE,,Data Not Provided,,5106249639,NSI Fees,DE23 8DP,"2,080.00",
MHCLG,PINS,30/07/2019,NSI Fees & Expenses,NSI Expenses Planning,ANDREW DALE,,Data Not Provided,,5106249639,NSI Expenses,DE23 8DP,305.40,
MHCLG,PINS,30/07/2019,NSI Fees & Expenses,NSI Fees Planning,ANTHONY THOMPSON,,Micro,,5106249619,NSI Fees,SM2 5HS,"1,400.00",
MHCLG,PINS,30/07/2019,NSI Fees & Expenses,NSI Expenses Planning,ANTHONY THOMPSON,,Micro,,5106249619,NSI Expenses,SM2 5HS,32.85,
MHCLG,PINS,30/07/2019,NSI Fees & Expenses,NSI Fees Planning,ELIZABETH LAWRENCE LTD,,Micro,,5106249614,NSI Fees,RH20 3LY,"3,060.00",
MHCLG,PINS,30/07/2019,NSI Fees & Expenses,NSI Expenses Planning,ELIZABETH LAWRENCE LTD,,Micro,,5106249614,NSI Expenses,RH20 3LY,133.32,
MHCLG,PINS,30/07/2019,NSI Fees & Expenses,NSI Fees Planning,ELIZABETH LAWRENCE LTD,,Micro,,5106249615,NSI Fees,RH20 3LY,"2,040.00",
MHCLG,PINS,30/07/2019,NSI Fees & Expenses,NSI Expenses Planning,ELIZABETH LAWRENCE LTD,,Micro,,5106249615,NSI Expenses,RH20 3LY,159.90,
MHCLG,PINS,30/07/2019,NSI Fees & Expenses,NSI Fees Planning,ELIZABETH LAWRENCE LTD,,Micro,,5106249618,NSI Fees,RH20 3LY,"2,250.00",
MHCLG,PINS,30/07/2019,NSI Fees & Expenses,NSI Expenses Planning,ELIZABETH LAWRENCE LTD,,Micro,,5106249618,NSI Expenses,RH20 3LY,54.54,
MHCLG,PINS,30/07/2019,NSI Fees & Expenses,NSI Fees Planning,KAREN WINNARD,,Data Not Provided,,5106249637,NSI Fees,S36 6HT,"1,050.00",
MHCLG,PINS,30/07/2019,NSI Fees & Expenses,NSI Expenses Planning,KAREN WINNARD,,Data Not Provided,,5106249637,NSI Expenses,S36 6HT,123.30,
MHCLG,PINS,30/07/2019,NSI Fees & Expenses,NSI Fees Planning,MR G POWYS JONES,,Data Not Provided,,5106249641,NSI Fees,CF14 1QB,"1,400.00",
MHCLG,PINS,30/07/2019,NSI Fees & Expenses,NSI Expenses Planning,MR G POWYS JONES,,Data Not Provided,,5106249641,NSI Expenses,CF14 1QB,162.60,
MHCLG,PINS,30/07/2019,NSI Fees & Expenses,NSI Fees Planning,RICHMOND PLANNING AND MARKETING LTD,,Small,,5106249632,NSI Fees,B45 8HX,"1,875.00",
MHCLG,PINS,30/07/2019,NSI Fees & Expenses,NSI Expenses Planning,RICHMOND PLANNING AND MARKETING LTD,,Small,,5106249632,NSI Expenses,B45 8HX,85.43,
MHCLG,PINS,30/07/2019,Printing,Business Support,CORPORATE DOCUMENT SERVICES LTD,,Data Not Provided,,5106249627,Printing stationery  envelopes,LS2 7LY,297.00,
MHCLG,PINS,30/07/2019,Specialist Technical Support,ICT Digital Services,HAYS SPECIALIST RECRUITMENT LTD,,Large,,5106249657,BA with O365 exp,NW1 2AF,"2,797.82",
MHCLG,PINS,30/07/2019,Specialist Technical Support,ICT Digital Services,HAYS SPECIALIST RECRUITMENT LTD,,Large,,5106249658,BA with O365 exp,NW1 2AF,"2,098.37",
MHCLG,PINS,30/07/2019,Specialist Technical Support,ICT Digital Services,REED SPECIALIST RECRUITMENT LTD,,Large,,5106249643,Contract ext EM,SW20 0BA,"1,012.06",
MHCLG,PINS,30/07/2019,Training,"Finance, Commercial & Performance",SR SUPPLY CHAIN CONSULTANTS LTD,,Micro,,5106249629,CIPS AD 19-21 DS,BB1 2QY,"4,860.00",
MHCLG,PINS,30/07/2019,Training,"Finance, Commercial & Performance",SR SUPPLY CHAIN CONSULTANTS LTD,,Micro,,5106249629,CIPS Assess Fee,BB1 2QY,636.00,
MHCLG,PINS,31/07/2019,Agency Staff,"Finance, Commercial & Performance",REED SPECIALIST RECRUITMENT LTD,,Large,,5106249665,EO Finance GT,SW20 0BA,879.67,
MHCLG,PINS,31/07/2019,Agency Staff,Human Resources,REED SPECIALIST RECRUITMENT LTD,,Large,,5106249666,AO HR - LK,SW20 0BA,579.84,
MHCLG,PINS,31/07/2019,Agency Staff,Human Resources,REED SPECIALIST RECRUITMENT LTD,,Large,,5106249667,AO HR - DU,SW20 0BA,384.00,
MHCLG,PINS,31/07/2019,EXP � PURCHASE OF GOODS /SERVICES R & D,Research and Development,HAYS SPECIALIST RECRUITMENT LTD,,Large,,5106249676,Test Analyst ODT,NW1 2AF,"1,748.52",
MHCLG,PINS,31/07/2019,EXP � PURCHASE OF GOODS /SERVICES R & D,Research and Development,HAYS SPECIALIST RECRUITMENT LTD,,Large,,5106249679,Test Analyst ODT,NW1 2AF,"1,748.52",
MHCLG,PINS,31/07/2019,NSI Fees & Expenses,NSI Fees Planning,ENERGIA CONSULTANTS LTD,,Micro,,5106249701,NSI Fees,GL6 0SA,"1,400.00",
MHCLG,PINS,31/07/2019,NSI Fees & Expenses,NSI Expenses Planning,ENERGIA CONSULTANTS LTD,,Micro,,5106249701,NSI Expenses,GL6 0SA,113.10,
MHCLG,PINS,31/07/2019,NSI Fees & Expenses,NSI Fees Planning,HARTLEY PLANNING&DEVELOPMENT ASSOCI,,Micro,,5106249704,NSI Fees,BB4 8TB,"1,700.00",
MHCLG,PINS,31/07/2019,NSI Fees & Expenses,NSI Expenses Planning,HARTLEY PLANNING&DEVELOPMENT ASSOCI,,Micro,,5106249704,NSI Expenses,BB4 8TB,347.44,
MHCLG,PINS,31/07/2019,NSI Fees & Expenses,NSI Fees Planning,JDA DEVELOPMENT & PLANNING SERVICE,,Micro,,5106249702,NSI Fees,TA14 6PT,"1,750.00",
MHCLG,PINS,31/07/2019,NSI Fees & Expenses,NSI Expenses Planning,JDA DEVELOPMENT & PLANNING SERVICE,,Micro,,5106249702,NSI Expenses,TA14 6PT,355.19,
MHCLG,PINS,31/07/2019,NSI Fees & Expenses,NSI Fees Planning,JDAT LTD,,Small,,5106249529,NSI Fees,BS1 4RJ,"1,400.00",
MHCLG,PINS,31/07/2019,NSI Fees & Expenses,NSI Expenses Planning,JDAT LTD,,Small,,5106249529,NSI Expenses,BS1 4RJ,16.65,
MHCLG,PINS,31/07/2019,NSI Fees & Expenses,NSI Fees Planning,JDAT LTD,,Small,,5106249530,NSI Fees,BS1 4RJ,"1,700.00",
MHCLG,PINS,31/07/2019,NSI Fees & Expenses,NSI Expenses Planning,JDAT LTD,,Small,,5106249530,NSI Expenses,BS1 4RJ,91.89,
MHCLG,PINS,31/07/2019,NSI Fees & Expenses,NSI Fees Planning,JDAT LTD,,Small,,5106249668,NSI Fees,BS1 4RJ,"1,275.00",
MHCLG,PINS,31/07/2019,NSI Fees & Expenses,NSI Expenses Planning,JDAT LTD,,Small,,5106249668,NSI Expenses,BS1 4RJ,243.92,
MHCLG,PINS,31/07/2019,NSI Fees & Expenses,NSI Fees Planning,JDAT LTD,,Small,,5106249681,NSI Fees,BS1 4RJ,"1,700.00",
MHCLG,PINS,31/07/2019,NSI Fees & Expenses,NSI Expenses Planning,JDAT LTD,,Small,,5106249681,NSI Expenses,BS1 4RJ,249.05,
MHCLG,PINS,31/07/2019,NSI Fees & Expenses,NSI Fees Planning,KAREN WINNARD,,Data Not Provided,,5106249672,NSI Fees,S36 6HT,"1,050.00",
MHCLG,PINS,31/07/2019,NSI Fees & Expenses,NSI Expenses Planning,KAREN WINNARD,,Data Not Provided,,5106249672,NSI Expenses,S36 6HT,74.60,
MHCLG,PINS,31/07/2019,NSI Fees & Expenses,NSI Fees Planning,LJE PLANNING LTD,,Data Not Provided,,5106249527,NSI Fees,SO22 6RT,"2,370.00",
MHCLG,PINS,31/07/2019,NSI Fees & Expenses,NSI Expenses Planning,LJE PLANNING LTD,,Data Not Provided,,5106249527,NSI Expenses,SO22 6RT,81.18,
MHCLG,PINS,31/07/2019,NSI Fees & Expenses,NSI Fees Planning,LJE PLANNING LTD,,Data Not Provided,,5106249528,NSI Fees,SO22 6RT,"2,820.00",
MHCLG,PINS,31/07/2019,NSI Fees & Expenses,NSI Expenses Planning,LJE PLANNING LTD,,Data Not Provided,,5106249528,NSI Expenses,SO22 6RT,66.00,
MHCLG,PINS,31/07/2019,NSI Fees & Expenses,NSI Fees Planning,MR G POWYS JONES,,Data Not Provided,,5106249703,NSI Fees,CF14 1QB,"2,300.00",
MHCLG,PINS,31/07/2019,NSI Fees & Expenses,NSI Expenses Planning,MR G POWYS JONES,,Data Not Provided,,5106249703,NSI Expenses,CF14 1QB,294.55,
MHCLG,PINS,31/07/2019,NSI Fees & Expenses,NSI Fees Planning,S P PLANNING,,Small,,5106249699,NSI Fees,EC1M 5QA,"1,980.00",
MHCLG,PINS,31/07/2019,NSI Fees & Expenses,NSI Expenses Planning,S P PLANNING,,Small,,5106249699,NSI Expenses,EC1M 5QA,15.36,
MHCLG,PINS,31/07/2019,NSI Fees & Expenses,NSI Fees Planning,SANDRA PRAIL LTD,,Micro,,5106249700,NSI Fees,BN16 1RX,"1,830.00",
MHCLG,PINS,31/07/2019,NSI Fees & Expenses,NSI Expenses Planning,SANDRA PRAIL LTD,,Micro,,5106249700,NSI Expenses,BN16 1RX,97.92,
MHCLG,PINS,31/07/2019,Software Licences,ICT Digital Services,INSIGHT DIRECT (UK) LTD,,Large,,5106249677,Project online essentials,UB8 1PH,"2,603.23",
MHCLG,PINS,31/07/2019,Software Licences,ICT Digital Services,INSIGHT DIRECT (UK) LTD,,Large,,5106249677,Project online premium,UB8 1PH,"1,137.14",
MHCLG,PINS,31/07/2019,Software Licences,ICT Digital Services,INSIGHT DIRECT (UK) LTD,,Large,,5106249677,Project online professional,UB8 1PH,"3,101.69",
